Workbook

Sheet Display
M1: =Symbols!G2 -> 50 | N1: =Symbols!C5 -> EP | O1: =LEFT(RIGHT(P8,LEN(P8)-(SEARCH(N1,P8)+LEN(N1)-1)),3) -> Z17 | P1: =Symbols!J2 -> C.US.EPZ17 | Q1: =Symbols!L2 -> P.US.EPZ17
E2: CQG E-mini S&P 500 (Globex) User-Defined Strategies (UDS) Market Quotes | Q2: =RTD("cqg.rtd", ,"SystemInfo", "Linetime") -> 43018.63565
C4: Until an order for a spread is sent and accepted by an exchange for trading, the market data shown on the DOM ladder is synthetic. If the UDS has been defined by someone else and the spread is trading, then the market data shown is actual, not synthetic.
C6: Strategy | D6: UDS Type | E6: UDS Formula | H6: Bid Vol | I6: Best Bid | K6: Best Ask | L6: Ask Vol | M6: Expiration | P6: Symbol | Q6: Bid Vol | R6: Best Bid | T6: Best Ask | U6: Ask Vol
C7: Bear Put Spread | D7: BearP | E7: ="UDS("&Symbols!N7&"-"&Symbols!O7&","&D7&")" -> UDS(P.US.EPZ1725500-P.US.EPZ1725600,BearP) | H7: =IFERROR(RTD("cqg.rtd", ,"ContractData",E7, "MT_LastBidVolume",, "T"),"") -> 0 | I7: =IFERROR(RTD("cqg.rtd", ,"ContractData",E7, "Bid",, "T"),"") ->  | K7: =IFERROR(RTD("cqg.rtd", ,"ContractData",E7, "Ask",, "T"),"") ->  | L7: =IFERROR(RTD("cqg.rtd", ,"ContractData",E7, "MT_LastAskVolume",, "T"),"") -> 0 | M7: Days | O7: Calls | P7: =LEFT(P8,SEARCH($O$1,P8))&TEXT(RIGHT(P8,(LEN(P8)-SEARCH($O$1,P8))),"#")-$M$1 -> C.US.EPZ1725450 | Q7: =IFERROR(RTD("cqg.rtd", ,"ContractData",P7, "MT_LastBidVolume",, "T"),"") -> 0 | R7: =IFERROR(RTD("cqg.rtd", ,"ContractData",P7, "Bid",, "T"),"") ->  | T7: =IFERROR(RTD("cqg.rtd", ,"ContractData",P7, "Ask",, "T"),"") -> 68 | U7: =IFERROR(RTD("cqg.rtd", ,"ContractData",P7, "MT_LastAskVolume",, "T"),"") -> 1
C8: Box Spread | D8: Box | E8: ="UDS("&Symbols!N8&"-"&Symbols!O8&"+"&Symbols!P8&"-"&Symbols!Q8&","&$D$8&")" -> UDS(C.US.EPZ1725600-C.US.EPZ1725650+P.US.EPZ1725700-P.US.EPZ1725950,Box) | H8: =IFERROR(RTD("cqg.rtd", ,"ContractData",E8, "MT_LastBidVolume",, "T"),"") -> 0 | I8: =IFERROR(RTD("cqg.rtd", ,"ContractData",E8, "Bid",, "T"),"") ->  | K8: =IFERROR(RTD("cqg.rtd", ,"ContractData",E8, "Ask",, "T"),"") ->  | L8: =IFERROR(RTD("cqg.rtd", ,"ContractData",E8, "MT_LastAskVolume",, "T"),"") -> 0 | M8: =IFERROR(RTD("cqg.rtd", ,"ContractData",P8, "OptionDaysToExp",, "T"),"") -> 66 | P8: =RTD("cqg.rtd", ,"ContractData",$P$1, "Symbol",, "T") -> C.US.EPZ1725500 | Q8: =IFERROR(RTD("cqg.rtd", ,"ContractData",P8, "MT_LastBidVolume",, "T"),"") -> 2 | R8: =IFERROR(RTD("cqg.rtd", ,"ContractData",P8, "Bid",, "T"),"") -> 32.5 | T8: =IFERROR(RTD("cqg.rtd", ,"ContractData",P8, "Ask",, "T"),"") -> 39.25 | U8: =IFERROR(RTD("cqg.rtd", ,"ContractData",P8, "MT_LastAskVolume",, "T"),"") -> 2
C9: Bull Call Spread | D9: BullC | E9: ="UDS("&Symbols!N9&"-"&Symbols!O9&","&D9&")" -> UDS(C.US.EPZ1725650-C.US.EPZ1725750,BullC) | H9: =IFERROR(RTD("cqg.rtd", ,"ContractData",E9, "MT_LastBidVolume",, "T"),"") -> 0 | I9: =IFERROR(RTD("cqg.rtd", ,"ContractData",E9, "Bid",, "T"),"") ->  | K9: =IFERROR(RTD("cqg.rtd", ,"ContractData",E9, "Ask",, "T"),"") ->  | L9: =IFERROR(RTD("cqg.rtd", ,"ContractData",E9, "MT_LastAskVolume",, "T"),"") -> 0 | M9: Date | P9: =LEFT(P8,SEARCH($O$1,P8))&TEXT(RIGHT(P8,(LEN(P8)-SEARCH($O$1,P8))),"#")+$M$1 -> C.US.EPZ1725550 | Q9: =IFERROR(RTD("cqg.rtd", ,"ContractData",P9, "MT_LastBidVolume",, "T"),"") -> 0 | R9: =IFERROR(RTD("cqg.rtd", ,"ContractData",P9, "Bid",, "T"),"") ->  | T9: =IFERROR(RTD("cqg.rtd", ,"ContractData",P9, "Ask",, "T"),"") ->  | U9: =IFERROR(RTD("cqg.rtd", ,"ContractData",P9, "MT_LastAskVolume",, "T"),"") -> 0
C10: Butterfly Call Long | D10: BflyCL | E10: ="UDS("&Symbols!N10&"-2*"&Symbols!O10&"+"&Symbols!P10&","&D10&")" -> UDS(C.US.EPZ1725500-2*C.US.EPZ1725550+C.US.EPZ1725600,BflyCL) | H10: =IFERROR(RTD("cqg.rtd", ,"ContractData",E10, "MT_LastBidVolume",, "T"),"") -> 0 | I10: =IFERROR(RTD("cqg.rtd", ,"ContractData",E10, "Bid",, "T"),"") ->  | K10: =IFERROR(RTD("cqg.rtd", ,"ContractData",E10, "Ask",, "T"),"") ->  | L10: =IFERROR(RTD("cqg.rtd", ,"ContractData",E10, "MT_LastAskVolume",, "T"),"") -> 0 | M10: =IFERROR(RTD("cqg.rtd", ,"ContractData",P8, "ExpirationDate",, "T"),"") -> 2017-12-15 | P10: =LEFT(P9,SEARCH($O$1,P9))&TEXT(RIGHT(P9,(LEN(P9)-SEARCH($O$1,P9))),"#")+$M$1 -> C.US.EPZ1725600 | Q10: =IFERROR(RTD("cqg.rtd", ,"ContractData",P10, "MT_LastBidVolume",, "T"),"") -> 0 | R10: =IFERROR(RTD("cqg.rtd", ,"ContractData",P10, "Bid",, "T"),"") ->  | T10: =IFERROR(RTD("cqg.rtd", ,"ContractData",P10, "Ask",, "T"),"") -> 30.5 | U10: =IFERROR(RTD("cqg.rtd", ,"ContractData",P10, "MT_LastAskVolume",, "T"),"") -> 2
C11: Butterfly Call Short | D11: BflyCS | E11: ="UDS(-"&Symbols!N11&"+2*"&Symbols!O11&"-"&Symbols!P11&","&D11&")" -> UDS(-C.US.EPZ1725700+2*C.US.EPZ1725750-C.US.EPZ1725800,BflyCS) | H11: =IFERROR(RTD("cqg.rtd", ,"ContractData",E11, "MT_LastBidVolume",, "T"),"") -> 0 | I11: =IFERROR(RTD("cqg.rtd", ,"ContractData",E11, "Bid",, "T"),"") ->  | K11: =IFERROR(RTD("cqg.rtd", ,"ContractData",E11, "Ask",, "T"),"") ->  | L11: =IFERROR(RTD("cqg.rtd", ,"ContractData",E11, "MT_LastAskVolume",, "T"),"") -> 0 | P11: =LEFT(P10,SEARCH($O$1,P10))&TEXT(RIGHT(P10,(LEN(P10)-SEARCH($O$1,P10))),"#")+$M$1 -> C.US.EPZ1725650 | Q11: =IFERROR(RTD("cqg.rtd", ,"ContractData",P11, "MT_LastBidVolume",, "T"),"") -> 1 | R11: =IFERROR(RTD("cqg.rtd", ,"ContractData",P11, "Bid",, "T"),"") -> 26 | T11: =IFERROR(RTD("cqg.rtd", ,"ContractData",P11, "Ask",, "T"),"") ->  | U11: =IFERROR(RTD("cqg.rtd", ,"ContractData",P11, "MT_LastAskVolume",, "T"),"") -> 0
C12: Butterfly Put Long | D12: BflyPL | E12: ="UDS("&Symbols!N12&"-2*"&Symbols!O12&"+"&Symbols!P12&","&D12&")" -> UDS(P.US.EPZ1725600-2*P.US.EPZ1725650+P.US.EPZ1725700,BflyPL) | H12: =IFERROR(RTD("cqg.rtd", ,"ContractData",E12, "MT_LastBidVolume",, "T"),"") -> 0 | I12: =IFERROR(RTD("cqg.rtd", ,"ContractData",E12, "Bid",, "T"),"") ->  | K12: =IFERROR(RTD("cqg.rtd", ,"ContractData",E12, "Ask",, "T"),"") ->  | L12: =IFERROR(RTD("cqg.rtd", ,"ContractData",E12, "MT_LastAskVolume",, "T"),"") -> 0 | N12: =IFERROR(RTD("cqg.rtd", ,"ContractData",P8, " OptionUndSymbol",, "T"),"") -> EPZ7 | O12: =IFERROR(RTD("cqg.rtd", ,"ContractData",N12, "LongDescription",, "T"),"") -> E-Mini S&P 500, Dec 17 | Q12: =IFERROR(RTD("cqg.rtd", ,"ContractData",N12, "LastTrade",, "T"),"") -> 2548.5 | T12: ="NC "&IFERROR(TEXT(RTD("cqg.rtd",,"ContractData",N12,"NetLastTrade",,"T"),"#.00"),"") -> NC 4.75
C13: Butterfly Put Short | D13: BflyPS | E13: ="UDS(-"&Symbols!N13&"+2*"&Symbols!O13&"-"&Symbols!P13&","&D13&")" -> UDS(-P.US.EPZ1725650+2*P.US.EPZ1725700-P.US.EPZ1725950,BflyPS) | H13: =IFERROR(RTD("cqg.rtd", ,"ContractData",E13, "MT_LastBidVolume",, "T"),"") -> 0 | I13: =IFERROR(RTD("cqg.rtd", ,"ContractData",E13, "Bid",, "T"),"") ->  | K13: =IFERROR(RTD("cqg.rtd", ,"ContractData",E13, "Ask",, "T"),"") ->  | L13: =IFERROR(RTD("cqg.rtd", ,"ContractData",E13, "MT_LastAskVolume",, "T"),"") -> 0 | M13: Call ATM IV | O13: Puts | P13: =LEFT(P14,SEARCH($O$1,P14))&TEXT(RIGHT(P14,(LEN(P14)-SEARCH($O$1,P14))),"#")-$M$1 -> P.US.EPZ1725450 | Q13: =IFERROR(RTD("cqg.rtd", ,"ContractData",P13, "MT_LastBidVolume",, "T"),"") -> 0 | R13: =IFERROR(RTD("cqg.rtd", ,"ContractData",P13, "Bid",, "T"),"") ->  | T13: =IFERROR(RTD("cqg.rtd", ,"ContractData",P13, "Ask",, "T"),"") ->  | U13: =IFERROR(RTD("cqg.rtd", ,"ContractData",P13, "MT_LastAskVolume",, "T"),"") -> 0
C14: Calendar Call | D14: CalC | E14: ="UDS(-"&Symbols!N14&"+"&Symbols!O14&","&D14&")" -> UDS(-C.US.EPZ1725600+C.US.EPH1825600,CalC) | H14: =IFERROR(RTD("cqg.rtd", ,"ContractData",E14, "MT_LastBidVolume",, "T"),"") -> 0 | I14: =IFERROR(RTD("cqg.rtd", ,"ContractData",E14, "Bid",, "T"),"") ->  | K14: =IFERROR(RTD("cqg.rtd", ,"ContractData",E14, "Ask",, "T"),"") ->  | L14: =IFERROR(RTD("cqg.rtd", ,"ContractData",E14, "MT_LastAskVolume",, "T"),"") -> 0 | M14: =RTD("cqg.rtd", ,"ContractData",P8, "ImpliedVolatility",, "T") -> 9.27 | P14: =RTD("cqg.rtd", ,"ContractData",$Q$1, "Symbol",, "T") -> P.US.EPZ1725500 | Q14: =IFERROR(RTD("cqg.rtd", ,"ContractData",P14, "MT_LastBidVolume",, "T"),"") -> 1 | R14: =IFERROR(RTD("cqg.rtd", ,"ContractData",P14, "Bid",, "T"),"") -> 22 | T14: =IFERROR(RTD("cqg.rtd", ,"ContractData",P14, "Ask",, "T"),"") -> 41 | U14: =IFERROR(RTD("cqg.rtd", ,"ContractData",P14, "MT_LastAskVolume",, "T"),"") -> 1
C15: Call | E15: =Symbols!N15 -> C.US.EPZ1725550 | H15: =IFERROR(RTD("cqg.rtd", ,"ContractData",E15, "MT_LastBidVolume",, "T"),"") -> 0 | I15: =IFERROR(RTD("cqg.rtd", ,"ContractData",E15, "Bid",, "T"),"") ->  | K15: =IFERROR(RTD("cqg.rtd", ,"ContractData",E15, "Ask",, "T"),"") ->  | L15: =IFERROR(RTD("cqg.rtd", ,"ContractData",E15, "MT_LastAskVolume",, "T"),"") -> 0 | M15: Put ATM IV | P15: =LEFT(P14,SEARCH($O$1,P14))&TEXT(RIGHT(P14,(LEN(P14)-SEARCH($O$1,P14))),"#")+$M$1 -> P.US.EPZ1725550 | Q15: =IFERROR(RTD("cqg.rtd", ,"ContractData",P15, "MT_LastBidVolume",, "T"),"") -> 0 | R15: =IFERROR(RTD("cqg.rtd", ,"ContractData",P15, "Bid",, "T"),"") ->  | T15: =IFERROR(RTD("cqg.rtd", ,"ContractData",P15, "Ask",, "T"),"") ->  | U15: =IFERROR(RTD("cqg.rtd", ,"ContractData",P15, "MT_LastAskVolume",, "T"),"") -> 0
C16: Put | E16: =Symbols!N16 -> P.US.EPZ1725550 | H16: =IFERROR(RTD("cqg.rtd", ,"ContractData",E16, "MT_LastBidVolume",, "T"),"") -> 0 | I16: =IFERROR(RTD("cqg.rtd", ,"ContractData",E16, "Bid",, "T"),"") ->  | K16: =IFERROR(RTD("cqg.rtd", ,"ContractData",E16, "Ask",, "T"),"") ->  | L16: =IFERROR(RTD("cqg.rtd", ,"ContractData",E16, "MT_LastAskVolume",, "T"),"") -> 0 | M16: =RTD("cqg.rtd", ,"ContractData",P14, "ImpliedVolatility",, "T") -> 9.33 | P16: P.US.EPZ1725600 | Q16: =IFERROR(RTD("cqg.rtd", ,"ContractData",P16, "MT_LastBidVolume",, "T"),"") -> 0 | R16: =IFERROR(RTD("cqg.rtd", ,"ContractData",P16, "Bid",, "T"),"") ->  | T16: =IFERROR(RTD("cqg.rtd", ,"ContractData",P16, "Ask",, "T"),"") ->  | U16: =IFERROR(RTD("cqg.rtd", ,"ContractData",P16, "MT_LastAskVolume",, "T"),"") -> 0
C17: Christmas Tree Call Long | D17: CTreeCL | E17: ="UDS("&Symbols!N17&"-"&Symbols!O17&"-"&Symbols!P17&","&D17&")" -> UDS(C.US.EPZ1725500-C.US.EPZ1725550-C.US.EPZ1725600,CTreeCL) | H17: =IFERROR(RTD("cqg.rtd", ,"ContractData",E17, "MT_LastBidVolume",, "T"),"") -> 0 | I17: =IFERROR(RTD("cqg.rtd", ,"ContractData",E17, "Bid",, "T"),"") ->  | K17: =IFERROR(RTD("cqg.rtd", ,"ContractData",E17, "Ask",, "T"),"") ->  | L17: =IFERROR(RTD("cqg.rtd", ,"ContractData",E17, "MT_LastAskVolume",, "T"),"") -> 0 | P17: P.US.EPZ1725650 | Q17: =IFERROR(RTD("cqg.rtd", ,"ContractData",P17, "MT_LastBidVolume",, "T"),"") -> 0 | R17: =IFERROR(RTD("cqg.rtd", ,"ContractData",P17, "Bid",, "T"),"") ->  | T17: =IFERROR(RTD("cqg.rtd", ,"ContractData",P17, "Ask",, "T"),"") ->  | U17: =IFERROR(RTD("cqg.rtd", ,"ContractData",P17, "MT_LastAskVolume",, "T"),"") -> 0
C18: Christmas Tree Put Long | D18: CTreePL | E18: ="UDS(-"&Symbols!N18&"-"&Symbols!O18&"+"&Symbols!P18&","&D18&")" -> UDS(-P.US.EPZ1725650-P.US.EPZ1725500+P.US.EPZ1725750,CTreePL) | H18: =IFERROR(RTD("cqg.rtd", ,"ContractData",E18, "MT_LastBidVolume",, "T"),"") -> 0 | I18: =IFERROR(RTD("cqg.rtd", ,"ContractData",E18, "Bid",, "T"),"") ->  | K18: =IFERROR(RTD("cqg.rtd", ,"ContractData",E18, "Ask",, "T"),"") ->  | L18: =IFERROR(RTD("cqg.rtd", ,"ContractData",E18, "MT_LastAskVolume",, "T"),"") -> 0 | R18: Frequency Distribution Call IV
C19: Delta Neutral Call Ratio | D19: DNeutC | E19: ="UDS("&F19&"*"&Symbols!N19&"-"&G19&"*"&Symbols!O19&","&D19&")" -> UDS(1*C.US.EPZ1725600-1*C.US.EPZ1725650,DNeutC) | F19: 1 | G19: 1 | H19: =IFERROR(RTD("cqg.rtd", ,"ContractData",E19, "MT_LastBidVolume",, "T"),"") -> 0 | I19: =IFERROR(RTD("cqg.rtd", ,"ContractData",E19, "Bid",, "T"),"") ->  | K19: =IFERROR(RTD("cqg.rtd", ,"ContractData",E19, "Ask",, "T"),"") -> 4.5 | L19: =IFERROR(RTD("cqg.rtd", ,"ContractData",E19, "MT_LastAskVolume",, "T"),"") -> 1
C20: Iron Butterfly Gut Long | D20: IBGutL | E20: ="UDS("&Symbols!N20&"-"&Symbols!O20&"-"&Symbols!P20&"+"&Symbols!Q20&","&D20&")" -> UDS(C.US.EPZ1725500-C.US.EPZ1725550-P.US.EPZ1725650+P.US.EPZ1725700,IBGutL) | H20: =IFERROR(RTD("cqg.rtd", ,"ContractData",E20, "MT_LastBidVolume",, "T"),"") -> 0 | I20: =IFERROR(RTD("cqg.rtd", ,"ContractData",E20, "Bid",, "T"),"") ->  | K20: =IFERROR(RTD("cqg.rtd", ,"ContractData",E20, "Ask",, "T"),"") ->  | L20: =IFERROR(RTD("cqg.rtd", ,"ContractData",E20, "MT_LastAskVolume",, "T"),"") -> 0
C21: Iron Butterfly Gut Short | D21: IBGutS | E21: ="UDS(-"&Symbols!N21&"+"&Symbols!O21&"+"&Symbols!P21&"-"&Symbols!Q21&","&D21&")" -> UDS(-C.US.EPZ1725500+C.US.EPZ1725550+P.US.EPZ1725600-P.US.EPZ1725650,IBGutS) | H21: =IFERROR(RTD("cqg.rtd", ,"ContractData",E21, "MT_LastBidVolume",, "T"),"") -> 0 | I21: =IFERROR(RTD("cqg.rtd", ,"ContractData",E21, "Bid",, "T"),"") ->  | K21: =IFERROR(RTD("cqg.rtd", ,"ContractData",E21, "Ask",, "T"),"") ->  | L21: =IFERROR(RTD("cqg.rtd", ,"ContractData",E21, "MT_LastAskVolume",, "T"),"") -> 0
C22: Iron Butterfly Short | D22: IBflyS | E22: ="UDS(-"&Symbols!N22&"+"&Symbols!O22&"+"&Symbols!P22&"-"&Symbols!Q22&","&D22&")" -> UDS(-P.US.EPZ1725500+P.US.EPZ1725550+C.US.EPZ1725600-C.US.EPZ1725650,IBflyS) | H22: =IFERROR(RTD("cqg.rtd", ,"ContractData",E22, "MT_LastBidVolume",, "T"),"") -> 0 | I22: =IFERROR(RTD("cqg.rtd", ,"ContractData",E22, "Bid",, "T"),"") ->  | K22: =IFERROR(RTD("cqg.rtd", ,"ContractData",E22, "Ask",, "T"),"") ->  | L22: =IFERROR(RTD("cqg.rtd", ,"ContractData",E22, "MT_LastAskVolume",, "T"),"") -> 0
C23: Ratio Spread Call | D23: RatioC | E23: ="UDS("&Symbols!N23&"-2*"&Symbols!O23&","&D23&")" -> UDS(C.US.EPZ1725550-2*C.US.EPZ1725600,RatioC) | H23: =IFERROR(RTD("cqg.rtd", ,"ContractData",E23, "MT_LastBidVolume",, "T"),"") -> 0 | I23: =IFERROR(RTD("cqg.rtd", ,"ContractData",E23, "Bid",, "T"),"") ->  | K23: =IFERROR(RTD("cqg.rtd", ,"ContractData",E23, "Ask",, "T"),"") ->  | L23: =IFERROR(RTD("cqg.rtd", ,"ContractData",E23, "MT_LastAskVolume",, "T"),"") -> 0
C24: Ratio Spread Put | D24: RatioP | E24: ="UDS("&Symbols!N24&"-2*"&Symbols!O24&","&D24&")" -> UDS(P.US.EPZ1725550-2*P.US.EPZ1725600,RatioP) | H24: =IFERROR(RTD("cqg.rtd", ,"ContractData",E24, "MT_LastBidVolume",, "T"),"") -> 0 | I24: =IFERROR(RTD("cqg.rtd", ,"ContractData",E24, "Bid",, "T"),"") ->  | K24: =IFERROR(RTD("cqg.rtd", ,"ContractData",E24, "Ask",, "T"),"") ->  | L24: =IFERROR(RTD("cqg.rtd", ,"ContractData",E24, "MT_LastAskVolume",, "T"),"") -> 0 | R24: Frequency Distribution Put IV
C25: Semi-Underlying Long | D25: SemiUL | E25: ="UDS(-"&Symbols!N25&"+"&Symbols!O25&","&D25&")" -> UDS(-C.US.EPZ1725550+P.US.EPZ1725550,SemiUL) | H25: =IFERROR(RTD("cqg.rtd", ,"ContractData",E25, "MT_LastBidVolume",, "T"),"") -> 0 | I25: =IFERROR(RTD("cqg.rtd", ,"ContractData",E25, "Bid",, "T"),"") ->  | K25: =IFERROR(RTD("cqg.rtd", ,"ContractData",E25, "Ask",, "T"),"") ->  | L25: =IFERROR(RTD("cqg.rtd", ,"ContractData",E25, "MT_LastAskVolume",, "T"),"") -> 0
C26: Semi-Underlying Short | D26: SemiUS | E26: ="UDS("&Symbols!N26&"-"&Symbols!O26&","&D26&")" -> UDS(P.US.EPZ1725550-C.US.EPZ1725550,SemiUS) | H26: =IFERROR(RTD("cqg.rtd", ,"ContractData",E26, "MT_LastBidVolume",, "T"),"") -> 0 | I26: =IFERROR(RTD("cqg.rtd", ,"ContractData",E26, "Bid",, "T"),"") ->  | K26: =IFERROR(RTD("cqg.rtd", ,"ContractData",E26, "Ask",, "T"),"") ->  | L26: =IFERROR(RTD("cqg.rtd", ,"ContractData",E26, "MT_LastAskVolume",, "T"),"") -> 0
C27: Straddle Long | D27: StradL | E27: ="UDS("&Symbols!N27&"+"&Symbols!O27&","&D27&")" -> UDS(C.US.EPZ1725500+P.US.EPZ1725500,StradL) | H27: =IFERROR(RTD("cqg.rtd", ,"ContractData",E27, "MT_LastBidVolume",, "T"),"") -> 0 | I27: =IFERROR(RTD("cqg.rtd", ,"ContractData",E27, "Bid",, "T"),"") ->  | K27: =IFERROR(RTD("cqg.rtd", ,"ContractData",E27, "Ask",, "T"),"") ->  | L27: =IFERROR(RTD("cqg.rtd", ,"ContractData",E27, "MT_LastAskVolume",, "T"),"") -> 0
C28: Strangle Long | D28: StrangL | E28: ="UDS("&Symbols!N28&"+"&Symbols!O28&","&D28&")" -> UDS(C.US.EPZ1725500+P.US.EPZ1725650,StrangL) | H28: =IFERROR(RTD("cqg.rtd", ,"ContractData",E28, "MT_LastBidVolume",, "T"),"") -> 0 | I28: =IFERROR(RTD("cqg.rtd", ,"ContractData",E28, "Bid",, "T"),"") ->  | K28: =IFERROR(RTD("cqg.rtd", ,"ContractData",E28, "Ask",, "T"),"") ->  | L28: =IFERROR(RTD("cqg.rtd", ,"ContractData",E28, "MT_LastAskVolume",, "T"),"") -> 0
C29: Synthetic Underlying Long | D29: SynUL | E29: ="UDS("&Symbols!N29&"-"&Symbols!O29&","&D29&")" -> UDS(C.US.EPZ1725500-P.US.EPZ1725500,SynUL) | H29: =IFERROR(RTD("cqg.rtd", ,"ContractData",E29, "MT_LastBidVolume",, "T"),"") -> 1 | I29: =IFERROR(RTD("cqg.rtd", ,"ContractData",E29, "Bid",, "T"),"") -> -8.5 | K29: =IFERROR(RTD("cqg.rtd", ,"ContractData",E29, "Ask",, "T"),"") -> 17.25 | L29: =IFERROR(RTD("cqg.rtd", ,"ContractData",E29, "MT_LastAskVolume",, "T"),"") -> 1
C30: CQG Inc., Copyright © 2017 Designed by Thom Hartle The Options Quote series in the upper right will update as the ATM strike changes. | N30: The Frequency Distribution uses CQG IV symbols for historical data.

Sheet Symbols
J1: =IF(LEN(C5)=2,LEFT(RTD("cqg.rtd",,"ContractData","C."&C5&C14,"Symbol",,"T"),10),IF(LEN(C5)=3,LEFT(RTD("cqg.rtd",,"ContractData","C."&C5&C14,"Symbol",,"T"),11),IF(LEN(C5)=4,LEFT(RTD("cqg.rtd",,"ContractData","C."&C5&C14,"Symbol",,"T"),12)))) -> C.US.EPH18 | L1: =IF(LEN(C5)=2,LEFT(RTD("cqg.rtd",,"ContractData","P."&C5&C14,"Symbol",,"T"),10),IF(LEN(C5)=3,LEFT(RTD("cqg.rtd",,"ContractData","P."&C5&C14,"Symbol",,"T"),11),IF(LEN(C5)=4,LEFT(RTD("cqg.rtd",,"ContractData","P."&C5&C14,"Symbol",,"T"),12)))) -> P.US.EPH18
B2: Enter in the Expiry, such as ?1. | C2: Current ATM Strike: | E2: =RTD("cqg.rtd", ,"ContractData","C."&C5&"?", "Strike",, "T") -> 25500 | F2: Step | G2: 50 | H2: Expiry: | I2: ?1 | J2: =IF(LEN(C5)=2,LEFT(RTD("cqg.rtd",,"ContractData","C."&C5&I2,"Symbol",,"T"),10),IF(LEN(C5)=3,LEFT(RTD("cqg.rtd",,"ContractData","C."&C5&I2,"Symbol",,"T"),11),IF(LEN(C5)=4,LEFT(RTD("cqg.rtd",,"ContractData","C."&C5&I2,"Symbol",,"T"),12)))) -> C.US.EPZ17 | L2: =IF(LEN(C5)=2,LEFT(RTD("cqg.rtd",,"ContractData","P."&C5&I2,"Symbol",,"T"),10),IF(LEN(C5)=3,LEFT(RTD("cqg.rtd",,"ContractData","P."&C5&I2,"Symbol",,"T"),11),IF(LEN(C5)=4,LEFT(RTD("cqg.rtd",,"ContractData","P."&C5&I2,"Symbol",,"T"),12)))) -> P.US.EPZ17
B3: Enter in the first Strike and the rest will update. | C3: Strikes | D3: First | E3: Second | F3: Third | G3: Fourth | H3: Fifth | I3: Sixth | J3: Seventh | K3: Eight | L3: Ninth | M3: Tenth
D4: 25500 | E4: =D4+$G$2 -> 25550 | F4: 25600 | G4: 25650 | H4: 25700 | I4: 25750 | J4: 25800 | K4: 25850 | L4: 25900 | M4: 25950
B5: Enter Option Root Symbol: | C5: EP
C6: Symbols
B7: =Display!C7 -> Bear Put Spread | C7: 2 | N7: =L2&D4 -> P.US.EPZ1725500 | O7: =L2&F4 -> P.US.EPZ1725600
B8: =Display!C8 -> Box Spread | C8: 4 | N8: =J2&F4 -> C.US.EPZ1725600 | O8: =J2&G4 -> C.US.EPZ1725650 | P8: =L2&H4 -> P.US.EPZ1725700 | Q8: =L2&M4 -> P.US.EPZ1725950
B9: =Display!C9 -> Bull Call Spread | C9: 2 | N9: =J2&G4 -> C.US.EPZ1725650 | O9: =J2&I4 -> C.US.EPZ1725750
B10: =Display!C10 -> Butterfly Call Long | C10: 3 | N10: =J2&D4 -> C.US.EPZ1725500 | O10: =J2&E4 -> C.US.EPZ1725550 | P10: =J2&F4 -> C.US.EPZ1725600
B11: =Display!C11 -> Butterfly Call Short | C11: 3 | N11: =J2&H4 -> C.US.EPZ1725700 | O11: =J2&I4 -> C.US.EPZ1725750 | P11: =J2&J4 -> C.US.EPZ1725800
B12: =Display!C12 -> Butterfly Put Long | C12: 3 | N12: =L2&F4 -> P.US.EPZ1725600 | O12: =L2&G4 -> P.US.EPZ1725650 | P12: =L2&H4 -> P.US.EPZ1725700
B13: =Display!C13 -> Butterfly Put Short | C13: 3 | N13: =L2&G4 -> P.US.EPZ1725650 | O13: =L2&H4 -> P.US.EPZ1725700 | P13: =L2&M4 -> P.US.EPZ1725950
B14: =Display!C14&" (Enter 2nd Expiry):" -> Calendar Call (Enter 2nd Expiry): | C14: ?2 | N14: =J2&F4 -> C.US.EPZ1725600 | O14: =J1&F4 -> C.US.EPH1825600
B15: =Display!C15 -> Call | C15: 1 | N15: =J2&E4 -> C.US.EPZ1725550
B16: =Display!C16 -> Put | C16: 1 | N16: =L2&E4 -> P.US.EPZ1725550
B17: =Display!C17 -> Christmas Tree Call Long | C17: 3 | N17: =J2&D4 -> C.US.EPZ1725500 | O17: =J2&E4 -> C.US.EPZ1725550 | P17: =J2&F4 -> C.US.EPZ1725600
B18: =Display!C18 -> Christmas Tree Put Long | C18: 3 | N18: =L2&G4 -> P.US.EPZ1725650 | O18: =L2&D4 -> P.US.EPZ1725500 | P18: =L2&I4 -> P.US.EPZ1725750
B19: =Display!C19 -> Delta Neutral Call Ratio | C19: 2 | N19: =J2&F4 -> C.US.EPZ1725600 | O19: =J2&G4 -> C.US.EPZ1725650
B20: =Display!C20 -> Iron Butterfly Gut Long | C20: 4 | N20: =J2&D4 -> C.US.EPZ1725500 | O20: =J2&E4 -> C.US.EPZ1725550 | P20: =L2&G4 -> P.US.EPZ1725650 | Q20: =L2&H4 -> P.US.EPZ1725700
B21: =Display!C21 -> Iron Butterfly Gut Short | C21: 4 | N21: =J2&D4 -> C.US.EPZ1725500 | O21: =J2&E4 -> C.US.EPZ1725550 | P21: =L2&F4 -> P.US.EPZ1725600 | Q21: =L2&G4 -> P.US.EPZ1725650
B22: =Display!C22 -> Iron Butterfly Short | C22: 4 | N22: =L2&D4 -> P.US.EPZ1725500 | O22: =L2&E4 -> P.US.EPZ1725550 | P22: =J2&F4 -> C.US.EPZ1725600 | Q22: =J2&G4 -> C.US.EPZ1725650
B23: =Display!C23 -> Ratio Spread Call | C23: 2 | N23: =J2&E4 -> C.US.EPZ1725550 | O23: =J2&F4 -> C.US.EPZ1725600
B24: =Display!C24 -> Ratio Spread Put | C24: 2 | N24: =L2&E4 -> P.US.EPZ1725550 | O24: =L2&F4 -> P.US.EPZ1725600
B25: =Display!C25 -> Semi-Underlying Long | C25: 2 | N25: =J2&E4 -> C.US.EPZ1725550 | O25: =L2&E4 -> P.US.EPZ1725550
B26: =Display!C26 -> Semi-Underlying Short | C26: 2 | N26: =L2&E4 -> P.US.EPZ1725550 | O26: =J2&E4 -> C.US.EPZ1725550
B27: =Display!C27 -> Straddle Long | C27: 2 | N27: =J2&D4 -> C.US.EPZ1725500 | O27: =L2&D4 -> P.US.EPZ1725500
B28: =Display!C28 -> Strangle Long | C28: 2 | N28: =J2&D4 -> C.US.EPZ1725500 | O28: =L2&G4 -> P.US.EPZ1725650
B29: =Display!C29 -> Synthetic Underlying Long | C29: 2 | N29: =J2&D4 -> C.US.EPZ1725500 | O29: =L2&D4 -> P.US.EPZ1725500
C69: 5

Sheet Data (hidden)
C1: Open | D1: =RTD("cqg.rtd", , "ContractData",D4,"PrimarySessionOpenTime","0") -> 08:30:00 | K1: =MIN(D5:D204) -> 7.21 | L1: =MIN(P5:P204) -> 7.35 | O1: Open | P1: =RTD("cqg.rtd", , "ContractData",P4,"PrimarySessionOpenTime","0") -> 08:30:00
B2: =RTD("cqg.rtd",,"StudyData", $D$4, "Bar",, "Close",$E$4,C5,"All",,,,"T") -> 0.0821 | C2: Close | D2: =RTD("cqg.rtd", , "ContractData",D4,"PrimarySessionCloseTime") -> 15:15:00 | E2: =D2-D1 -> 0.28125 | F2: =ROUND(IF(E2>0,E2*1440,1440+(1440*E2)),0) -> 405 | G2: =ROUNDDOWN(G4,0) -> 7 | H2: =ROUNDUP(H4,0) -> 14 | I2: =ROUND(ROUNDUP(((H2-G2)/35),2),1) -> 0.2 | K2: =MIN(K1:L1) -> 7.21 | N2: =RTD("cqg.rtd",,"StudyData", $D$4, "Bar",, "Close",$E$4,O5,"All",,,,"T") -> 0.0821 | O2: Close | P2: =RTD("cqg.rtd", , "ContractData",P4,"PrimarySessionCloseTime") -> 15:15:00 | Q2: =P2-P1 -> 0.28125 | R2: =ROUND(IF(Q2>0,Q2*1440,1440+(1440*Q2)),0) -> 405 | S2: =ROUNDDOWN(S4,0) -> 7 | T2: =ROUNDUP(T4,0) -> 13 | U2: =ROUND(ROUNDUP(((T2-S2)/35),2),1) -> 0.2
G3: =IF((G4-G2)>0.5,0.5,0) -> 0 | S3: =IF((S4-S2)>0.5,0.5,0) -> 0
D4: EPCIV | E4: D | G4: =K2 -> 7.21 | H4: =MAX(D5:D204) -> 13.54 | J4: =G5+I4 -> 7 | P4: EPPIV | Q4: D | S4: =K2 -> 7.21 | T4: =MAX(P5:P204) -> 12.88 | V4: =S5+U4 -> 7
C5: 0 | D5: =IF(RTD("cqg.rtd",,"StudyData", $D$4, "Bar",, "Close",$E$4,C5,"All",,,,"T")="","",RTD("cqg.rtd",,"StudyData", $D$4, "Bar",, "Close",$E$4,C5,"All",,,,"T")*100) -> 8.21 | G5: =G2+G3 -> 7 | H5: =D5 -> 8.21 | J5: =FREQUENCY(H5:H204,G5:G40) -> 0 | K5: =IF(AND($D$5>=G5,$D$5<G6),IF(J5=0,1,J5),NA()) ->  | O5: 0 | P5: =IF(RTD("cqg.rtd",,"StudyData", $P$4, "Bar",, "Close",$Q$4,O5,"All",,,,"T")="","",RTD("cqg.rtd",,"StudyData", $P$4, "Bar",, "Close",$Q$4,O5,"All",,,,"T")*100) -> 8.26 | S5: =S2+S3 -> 7 | T5: =P5 -> 8.26 | V5: =FREQUENCY(T5:T204,S5:S40) -> 0 | W5: =IF(AND($D$5>=S5,$D$5<S6),IF(V5=0,1,V5),NA()) -> 
C6: =C5-1 -> -1 | D6: =IF(RTD("cqg.rtd",,"StudyData", $D$4, "Bar",, "Close",$E$4,C6,"All",,,,"T")="","",RTD("cqg.rtd",,"StudyData", $D$4, "Bar",, "Close",$E$4,C6,"All",,,,"T")*100) -> 8.56 | G6: =G5+$I$2 -> 7.2 | H6: =D6 -> 8.56 | J6: 0 | K6: =IF(AND($D$5>=G6,$D$5<G7),IF(J6=0,1,J6),NA()) ->  | O6: =O5-1 -> -1 | P6: =IF(RTD("cqg.rtd",,"StudyData", $P$4, "Bar",, "Close",$Q$4,O6,"All",,,,"T")="","",RTD("cqg.rtd",,"StudyData", $P$4, "Bar",, "Close",$Q$4,O6,"All",,,,"T")*100) -> 8.57 | S6: =S5+$I$2 -> 7.2 | T6: =P6 -> 8.57 | V6: 0 | W6: =IF(AND($D$5>=S6,$D$5<S7),IF(V6=0,1,V6),NA()) -> 
C7: =C6-1 -> -2 | D7: =IF(RTD("cqg.rtd",,"StudyData", $D$4, "Bar",, "Close",$E$4,C7,"All",,,,"T")="","",RTD("cqg.rtd",,"StudyData", $D$4, "Bar",, "Close",$E$4,C7,"All",,,,"T")*100) -> 8.51 | G7: =G6+$I$2 -> 7.4 | H7: 8.51 | J7: 3 | O7: =O6-1 -> -2 | P7: =IF(RTD("cqg.rtd",,"StudyData", $P$4, "Bar",, "Close",$Q$4,O7,"All",,,,"T")="","",RTD("cqg.rtd",,"StudyData", $P$4, "Bar",, "Close",$Q$4,O7,"All",,,,"T")*100) -> 8.54 | S7: =S6+$I$2 -> 7.4 | T7: 8.54 | V7: 2
C8: -3 | D8: =IF(RTD("cqg.rtd",,"StudyData", $D$4, "Bar",, "Close",$E$4,C8,"All",,,,"T")="","",RTD("cqg.rtd",,"StudyData", $D$4, "Bar",, "Close",$E$4,C8,"All",,,,"T")*100) -> 8.29 | G8: 7.6 | H8: 8.29 | J8: 5 | O8: -3 | P8: =IF(RTD("cqg.rtd",,"StudyData", $P$4, "Bar",, "Close",$Q$4,O8,"All",,,,"T")="","",RTD("cqg.rtd",,"StudyData", $P$4, "Bar",, "Close",$Q$4,O8,"All",,,,"T")*100) -> 8.32 | S8: 7.6 | T8: 8.32 | V8: 5
C9: -4 | D9: =IF(RTD("cqg.rtd",,"StudyData", $D$4, "Bar",, "Close",$E$4,C9,"All",,,,"T")="","",RTD("cqg.rtd",,"StudyData", $D$4, "Bar",, "Close",$E$4,C9,"All",,,,"T")*100) -> 8.48 | G9: 7.8 | H9: 8.48 | J9: 4 | O9: -4 | P9: =IF(RTD("cqg.rtd",,"StudyData", $P$4, "Bar",, "Close",$Q$4,O9,"All",,,,"T")="","",RTD("cqg.rtd",,"StudyData", $P$4, "Bar",, "Close",$Q$4,O9,"All",,,,"T")*100) -> 8.52 | S9: 7.8 | T9: 8.52 | V9: 3
C10: -5 | D10: =IF(RTD("cqg.rtd",,"StudyData", $D$4, "Bar",, "Close",$E$4,C10,"All",,,,"T")="","",RTD("cqg.rtd",,"StudyData", $D$4, "Bar",, "Close",$E$4,C10,"All",,,,"T")*100) -> 8.59 | G10: 8 | H10: 8.59 | J10: 5 | O10: -5 | P10: =IF(RTD("cqg.rtd",,"StudyData", $P$4, "Bar",, "Close",$Q$4,O10,"All",,,,"T")="","",RTD("cqg.rtd",,"StudyData", $P$4, "Bar",, "Close",$Q$4,O10,"All",,,,"T")*100) -> 8.62 | S10: 8 | T10: 8.62 | V10: 4
C11: -6 | D11: =IF(RTD("cqg.rtd",,"StudyData", $D$4, "Bar",, "Close",$E$4,C11,"All",,,,"T")="","",RTD("cqg.rtd",,"StudyData", $D$4, "Bar",, "Close",$E$4,C11,"All",,,,"T")*100) -> 8.59 | G11: 8.2 | H11: 8.59 | J11: 3 | K11: 3 | O11: -6 | P11: =IF(RTD("cqg.rtd",,"StudyData", $P$4, "Bar",, "Close",$Q$4,O11,"All",,,,"T")="","",RTD("cqg.rtd",,"StudyData", $P$4, "Bar",, "Close",$Q$4,O11,"All",,,,"T")*100) -> 8.63 | S11: 8.2 | T11: 8.63 | V11: 4 | W11: 4
C12: -7 | D12: =IF(RTD("cqg.rtd",,"StudyData", $D$4, "Bar",, "Close",$E$4,C12,"All",,,,"T")="","",RTD("cqg.rtd",,"StudyData", $D$4, "Bar",, "Close",$E$4,C12,"All",,,,"T")*100) -> 8.96 | G12: 8.4 | H12: 8.96 | J12: 7 | O12: -7 | P12: =IF(RTD("cqg.rtd",,"StudyData", $P$4, "Bar",, "Close",$Q$4,O12,"All",,,,"T")="","",RTD("cqg.rtd",,"StudyData", $P$4, "Bar",, "Close",$Q$4,O12,"All",,,,"T")*100) -> 8.98 | S12: 8.4 | T12: 8.98 | V12: 6
C13: -8 | D13: =IF(RTD("cqg.rtd",,"StudyData", $D$4, "Bar",, "Close",$E$4,C13,"All",,,,"T")="","",RTD("cqg.rtd",,"StudyData", $D$4, "Bar",, "Close",$E$4,C13,"All",,,,"T")*100) -> 9.14 | G13: 8.6 | H13: 9.14 | J13: 12 | O13: -8 | P13: =IF(RTD("cqg.rtd",,"StudyData", $P$4, "Bar",, "Close",$Q$4,O13,"All",,,,"T")="","",RTD("cqg.rtd",,"StudyData", $P$4, "Bar",, "Close",$Q$4,O13,"All",,,,"T")*100) -> 9.16 | S13: 8.6 | T13: 9.16 | V13: 7
C14: -9 | D14: =IF(RTD("cqg.rtd",,"StudyData", $D$4, "Bar",, "Close",$E$4,C14,"All",,,,"T")="","",RTD("cqg.rtd",,"StudyData", $D$4, "Bar",, "Close",$E$4,C14,"All",,,,"T")*100) -> 9.36 | G14: 8.8 | H14: 9.36 | J14: 6 | O14: -9 | P14: =IF(RTD("cqg.rtd",,"StudyData", $P$4, "Bar",, "Close",$Q$4,O14,"All",,,,"T")="","",RTD("cqg.rtd",,"StudyData", $P$4, "Bar",, "Close",$Q$4,O14,"All",,,,"T")*100) -> 9.37 | S14: 8.8 | T14: 9.37 | V14: 11
C15: -10 | D15: =IF(RTD("cqg.rtd",,"StudyData", $D$4, "Bar",, "Close",$E$4,C15,"All",,,,"T")="","",RTD("cqg.rtd",,"StudyData", $D$4, "Bar",, "Close",$E$4,C15,"All",,,,"T")*100) -> 9.41 | G15: 9 | H15: 9.41 | J15: 12 | O15: -10 | P15: =IF(RTD("cqg.rtd",,"StudyData", $P$4, "Bar",, "Close",$Q$4,O15,"All",,,,"T")="","",RTD("cqg.rtd",,"StudyData", $P$4, "Bar",, "Close",$Q$4,O15,"All",,,,"T")*100) -> 9.43 | S15: 9 | T15: 9.43 | V15: 12
C16: -11 | D16: =IF(RTD("cqg.rtd",,"StudyData", $D$4, "Bar",, "Close",$E$4,C16,"All",,,,"T")="","",RTD("cqg.rtd",,"StudyData", $D$4, "Bar",, "Close",$E$4,C16,"All",,,,"T")*100) -> 9.39 | G16: 9.2 | H16: 9.39 | J16: 12 | O16: -11 | P16: =IF(RTD("cqg.rtd",,"StudyData", $P$4, "Bar",, "Close",$Q$4,O16,"All",,,,"T")="","",RTD("cqg.rtd",,"StudyData", $P$4, "Bar",, "Close",$Q$4,O16,"All",,,,"T")*100) -> 9.4 | S16: 9.2 | T16: 9.4 | V16: 13
C17: -12 | D17: =IF(RTD("cqg.rtd",,"StudyData", $D$4, "Bar",, "Close",$E$4,C17,"All",,,,"T")="","",RTD("cqg.rtd",,"StudyData", $D$4, "Bar",, "Close",$E$4,C17,"All",,,,"T")*100) -> 9.33 | G17: 9.4 | H17: 9.33 | J17: 12 | O17: -12 | P17: =IF(RTD("cqg.rtd",,"StudyData", $P$4, "Bar",, "Close",$Q$4,O17,"All",,,,"T")="","",RTD("cqg.rtd",,"StudyData", $P$4, "Bar",, "Close",$Q$4,O17,"All",,,,"T")*100) -> 9.33 | S17: 9.4 | T17: 9.33 | V17: 12
C18: -13 | D18: =IF(RTD("cqg.rtd",,"StudyData", $D$4, "Bar",, "Close",$E$4,C18,"All",,,,"T")="","",RTD("cqg.rtd",,"StudyData", $D$4, "Bar",, "Close",$E$4,C18,"All",,,,"T")*100) -> 9.16 | G18: 9.6 | H18: 9.16 | J18: 14 | O18: -13 | P18: =IF(RTD("cqg.rtd",,"StudyData", $P$4, "Bar",, "Close",$Q$4,O18,"All",,,,"T")="","",RTD("cqg.rtd",,"StudyData", $P$4, "Bar",, "Close",$Q$4,O18,"All",,,,"T")*100) -> 9.14 | S18: 9.6 | T18: 9.14 | V18: 14
C19: -14 | D19: =IF(RTD("cqg.rtd",,"StudyData", $D$4, "Bar",, "Close",$E$4,C19,"All",,,,"T")="","",RTD("cqg.rtd",,"StudyData", $D$4, "Bar",, "Close",$E$4,C19,"All",,,,"T")*100) -> 9.17 | G19: 9.8 | H19: 9.17 | J19: 14 | O19: -14 | P19: =IF(RTD("cqg.rtd",,"StudyData", $P$4, "Bar",, "Close",$Q$4,O19,"All",,,,"T")="","",RTD("cqg.rtd",,"StudyData", $P$4, "Bar",, "Close",$Q$4,O19,"All",,,,"T")*100) -> 9.18 | S19: 9.8 | T19: 9.18 | V19: 12
C20: -15 | D20: =IF(RTD("cqg.rtd",,"StudyData", $D$4, "Bar",, "Close",$E$4,C20,"All",,,,"T")="","",RTD("cqg.rtd",,"StudyData", $D$4, "Bar",, "Close",$E$4,C20,"All",,,,"T")*100) -> 9.28 | G20: 10 | H20: 9.28 | J20: 12 | O20: -15 | P20: =IF(RTD("cqg.rtd",,"StudyData", $P$4, "Bar",, "Close",$Q$4,O20,"All",,,,"T")="","",RTD("cqg.rtd",,"StudyData", $P$4, "Bar",, "Close",$Q$4,O20,"All",,,,"T")*100) -> 9.28 | S20: 10 | T20: 9.28 | V20: 11
C21: -16 | D21: =IF(RTD("cqg.rtd",,"StudyData", $D$4, "Bar",, "Close",$E$4,C21,"All",,,,"T")="","",RTD("cqg.rtd",,"StudyData", $D$4, "Bar",, "Close",$E$4,C21,"All",,,,"T")*100) -> 9.33 | G21: 10.2 | H21: 9.33 | J21: 7 | O21: -16 | P21: =IF(RTD("cqg.rtd",,"StudyData", $P$4, "Bar",, "Close",$Q$4,O21,"All",,,,"T")="","",RTD("cqg.rtd",,"StudyData", $P$4, "Bar",, "Close",$Q$4,O21,"All",,,,"T")*100) -> 9.34 | S21: 10.2 | T21: 9.34 | V21: 13
C22: -17 | D22: =IF(RTD("cqg.rtd",,"StudyData", $D$4, "Bar",, "Close",$E$4,C22,"All",,,,"T")="","",RTD("cqg.rtd",,"StudyData", $D$4, "Bar",, "Close",$E$4,C22,"All",,,,"T")*100) -> 9.69 | G22: 10.4 | H22: 9.69 | J22: 8 | O22: -17 | P22: =IF(RTD("cqg.rtd",,"StudyData", $P$4, "Bar",, "Close",$Q$4,O22,"All",,,,"T")="","",RTD("cqg.rtd",,"StudyData", $P$4, "Bar",, "Close",$Q$4,O22,"All",,,,"T")*100) -> 9.69 | S22: 10.4 | T22: 9.69 | V22: 10
C23: -18 | D23: =IF(RTD("cqg.rtd",,"StudyData", $D$4, "Bar",, "Close",$E$4,C23,"All",,,,"T")="","",RTD("cqg.rtd",,"StudyData", $D$4, "Bar",, "Close",$E$4,C23,"All",,,,"T")*100) -> 9.94 | G23: 10.6 | H23: 9.94 | J23: 4 | O23: -18 | P23: =IF(RTD("cqg.rtd",,"StudyData", $P$4, "Bar",, "Close",$Q$4,O23,"All",,,,"T")="","",RTD("cqg.rtd",,"StudyData", $P$4, "Bar",, "Close",$Q$4,O23,"All",,,,"T")*100) -> 9.94 | S23: 10.6 | T23: 9.94 | V23: 4
C24: -19 | D24: =IF(RTD("cqg.rtd",,"StudyData", $D$4, "Bar",, "Close",$E$4,C24,"All",,,,"T")="","",RTD("cqg.rtd",,"StudyData", $D$4, "Bar",, "Close",$E$4,C24,"All",,,,"T")*100) -> 10.03 | G24: 10.8 | H24: 10.03 | J24: 8 | O24: -19 | P24: =IF(RTD("cqg.rtd",,"StudyData", $P$4, "Bar",, "Close",$Q$4,O24,"All",,,,"T")="","",RTD("cqg.rtd",,"StudyData", $P$4, "Bar",, "Close",$Q$4,O24,"All",,,,"T")*100) -> 10.04 | S24: 10.8 | T24: 10.04 | V24: 9
C25: -20 | D25: =IF(RTD("cqg.rtd",,"StudyData", $D$4, "Bar",, "Close",$E$4,C25,"All",,,,"T")="","",RTD("cqg.rtd",,"StudyData", $D$4, "Bar",, "Close",$E$4,C25,"All",,,,"T")*100) -> 10.24 | G25: 11 | H25: 10.24 | J25: 11 | O25: -20 | P25: =IF(RTD("cqg.rtd",,"StudyData", $P$4, "Bar",, "Close",$Q$4,O25,"All",,,,"T")="","",RTD("cqg.rtd",,"StudyData", $P$4, "Bar",, "Close",$Q$4,O25,"All",,,,"T")*100) -> 10.26 | S25: 11 | T25: 10.26 | V25: 5
C26: -21 | D26: =IF(RTD("cqg.rtd",,"StudyData", $D$4, "Bar",, "Close",$E$4,C26,"All",,,,"T")="","",RTD("cqg.rtd",,"StudyData", $D$4, "Bar",, "Close",$E$4,C26,"All",,,,"T")*100) -> 10.58 | G26: 11.2 | H26: 10.58 | J26: 9 | O26: -21 | P26: =IF(RTD("cqg.rtd",,"StudyData", $P$4, "Bar",, "Close",$Q$4,O26,"All",,,,"T")="","",RTD("cqg.rtd",,"StudyData", $P$4, "Bar",, "Close",$Q$4,O26,"All",,,,"T")*100) -> 10.58 | S26: 11.2 | T26: 10.58 | V26: 6
C27: -22 | D27: =IF(RTD("cqg.rtd",,"StudyData", $D$4, "Bar",, "Close",$E$4,C27,"All",,,,"T")="","",RTD("cqg.rtd",,"StudyData", $D$4, "Bar",, "Close",$E$4,C27,"All",,,,"T")*100) -> 11.61 | G27: 11.4 | H27: 11.61 | J27: 5 | O27: -22 | P27: =IF(RTD("cqg.rtd",,"StudyData", $P$4, "Bar",, "Close",$Q$4,O27,"All",,,,"T")="","",RTD("cqg.rtd",,"StudyData", $P$4, "Bar",, "Close",$Q$4,O27,"All",,,,"T")*100) -> 11.61 | S27: 11.4 | T27: 11.61 | V27: 8
C28: -23 | D28: =IF(RTD("cqg.rtd",,"StudyData", $D$4, "Bar",, "Close",$E$4,C28,"All",,,,"T")="","",RTD("cqg.rtd",,"StudyData", $D$4, "Bar",, "Close",$E$4,C28,"All",,,,"T")*100) -> 11.29 | G28: 11.6 | H28: 11.29 | J28: 7 | O28: -23 | P28: =IF(RTD("cqg.rtd",,"StudyData", $P$4, "Bar",, "Close",$Q$4,O28,"All",,,,"T")="","",RTD("cqg.rtd",,"StudyData", $P$4, "Bar",, "Close",$Q$4,O28,"All",,,,"T")*100) -> 11.28 | S28: 11.6 | T28: 11.28 | V28: 10
C29: -24 | D29: =IF(RTD("cqg.rtd",,"StudyData", $D$4, "Bar",, "Close",$E$4,C29,"All",,,,"T")="","",RTD("cqg.rtd",,"StudyData", $D$4, "Bar",, "Close",$E$4,C29,"All",,,,"T")*100) -> 11.3 | G29: 11.8 | H29: 11.3 | J29: 6 | O29: -24 | P29: =IF(RTD("cqg.rtd",,"StudyData", $P$4, "Bar",, "Close",$Q$4,O29,"All",,,,"T")="","",RTD("cqg.rtd",,"StudyData", $P$4, "Bar",, "Close",$Q$4,O29,"All",,,,"T")*100) -> 11.3 | S29: 11.8 | T29: 11.3 | V29: 9
C30: -25 | D30: =IF(RTD("cqg.rtd",,"StudyData", $D$4, "Bar",, "Close",$E$4,C30,"All",,,,"T")="","",RTD("cqg.rtd",,"StudyData", $D$4, "Bar",, "Close",$E$4,C30,"All",,,,"T")*100) -> 11.49 | G30: 12 | H30: 11.49 | J30: 5 | O30: -25 | P30: =IF(RTD("cqg.rtd",,"StudyData", $P$4, "Bar",, "Close",$Q$4,O30,"All",,,,"T")="","",RTD("cqg.rtd",,"StudyData", $P$4, "Bar",, "Close",$Q$4,O30,"All",,,,"T")*100) -> 11.49 | S30: 12 | T30: 11.49 | V30: 4
C31: -26 | D31: =IF(RTD("cqg.rtd",,"StudyData", $D$4, "Bar",, "Close",$E$4,C31,"All",,,,"T")="","",RTD("cqg.rtd",,"StudyData", $D$4, "Bar",, "Close",$E$4,C31,"All",,,,"T")*100) -> 8.62 | G31: 12.2 | H31: 8.62 | J31: 4 | O31: -26 | P31: =IF(RTD("cqg.rtd",,"StudyData", $P$4, "Bar",, "Close",$Q$4,O31,"All",,,,"T")="","",RTD("cqg.rtd",,"StudyData", $P$4, "Bar",, "Close",$Q$4,O31,"All",,,,"T")*100) -> 8.93 | S31: 12.2 | T31: 8.93 | V31: 2
C32: -27 | D32: =IF(RTD("cqg.rtd",,"StudyData", $D$4, "Bar",, "Close",$E$4,C32,"All",,,,"T")="","",RTD("cqg.rtd",,"StudyData", $D$4, "Bar",, "Close",$E$4,C32,"All",,,,"T")*100) -> 9.02 | G32: 12.4 | H32: 9.02 | J32: 2 | O32: -27 | P32: =IF(RTD("cqg.rtd",,"StudyData", $P$4, "Bar",, "Close",$Q$4,O32,"All",,,,"T")="","",RTD("cqg.rtd",,"StudyData", $P$4, "Bar",, "Close",$Q$4,O32,"All",,,,"T")*100) -> 8.74 | S32: 12.4 | T32: 8.74 | V32: 1
C33: -28 | D33: =IF(RTD("cqg.rtd",,"StudyData", $D$4, "Bar",, "Close",$E$4,C33,"All",,,,"T")="","",RTD("cqg.rtd",,"StudyData", $D$4, "Bar",, "Close",$E$4,C33,"All",,,,"T")*100) -> 9.27 | G33: 12.6 | H33: 9.27 | J33: 2 | O33: -28 | P33: =IF(RTD("cqg.rtd",,"StudyData", $P$4, "Bar",, "Close",$Q$4,O33,"All",,,,"T")="","",RTD("cqg.rtd",,"StudyData", $P$4, "Bar",, "Close",$Q$4,O33,"All",,,,"T")*100) -> 9.31 | S33: 12.6 | T33: 9.31 | V33: 1
C34: -29 | D34: =IF(RTD("cqg.rtd",,"StudyData", $D$4, "Bar",, "Close",$E$4,C34,"All",,,,"T")="","",RTD("cqg.rtd",,"StudyData", $D$4, "Bar",, "Close",$E$4,C34,"All",,,,"T")*100) -> 9.44 | G34: 12.8 | H34: 9.44 | J34: 0 | O34: -29 | P34: =IF(RTD("cqg.rtd",,"StudyData", $P$4, "Bar",, "Close",$Q$4,O34,"All",,,,"T")="","",RTD("cqg.rtd",,"StudyData", $P$4, "Bar",, "Close",$Q$4,O34,"All",,,,"T")*100) -> 9.49 | S34: 12.8 | T34: 9.49 | V34: 0
C35: -30 | D35: =IF(RTD("cqg.rtd",,"StudyData", $D$4, "Bar",, "Close",$E$4,C35,"All",,,,"T")="","",RTD("cqg.rtd",,"StudyData", $D$4, "Bar",, "Close",$E$4,C35,"All",,,,"T")*100) -> 9.35 | G35: 13 | H35: 9.35 | J35: 0 | O35: -30 | P35: =IF(RTD("cqg.rtd",,"StudyData", $P$4, "Bar",, "Close",$Q$4,O35,"All",,,,"T")="","",RTD("cqg.rtd",,"StudyData", $P$4, "Bar",, "Close",$Q$4,O35,"All",,,,"T")*100) -> 9.83 | S35: 13 | T35: 9.83 | V35: 2
C36: -31 | D36: =IF(RTD("cqg.rtd",,"StudyData", $D$4, "Bar",, "Close",$E$4,C36,"All",,,,"T")="","",RTD("cqg.rtd",,"StudyData", $D$4, "Bar",, "Close",$E$4,C36,"All",,,,"T")*100) -> 9.6 | G36: 13.2 | H36: 9.6 | J36: 0 | O36: -31 | P36: =IF(RTD("cqg.rtd",,"StudyData", $P$4, "Bar",, "Close",$Q$4,O36,"All",,,,"T")="","",RTD("cqg.rtd",,"StudyData", $P$4, "Bar",, "Close",$Q$4,O36,"All",,,,"T")*100) -> 9.65 | S36: 13.2 | T36: 9.65 | V36: 0
C37: -32 | D37: =IF(RTD("cqg.rtd",,"StudyData", $D$4, "Bar",, "Close",$E$4,C37,"All",,,,"T")="","",RTD("cqg.rtd",,"StudyData", $D$4, "Bar",, "Close",$E$4,C37,"All",,,,"T")*100) -> 10.11 | G37: 13.4 | H37: 10.11 | J37: 0 | O37: -32 | P37: =IF(RTD("cqg.rtd",,"StudyData", $P$4, "Bar",, "Close",$Q$4,O37,"All",,,,"T")="","",RTD("cqg.rtd",,"StudyData", $P$4, "Bar",, "Close",$Q$4,O37,"All",,,,"T")*100) -> 10.23 | S37: 13.4 | T37: 10.23 | V37: 0
C38: -33 | D38: =IF(RTD("cqg.rtd",,"StudyData", $D$4, "Bar",, "Close",$E$4,C38,"All",,,,"T")="","",RTD("cqg.rtd",,"StudyData", $D$4, "Bar",, "Close",$E$4,C38,"All",,,,"T")*100) -> 10.16 | G38: 13.6 | H38: 10.16 | J38: 1 | O38: -33 | P38: =IF(RTD("cqg.rtd",,"StudyData", $P$4, "Bar",, "Close",$Q$4,O38,"All",,,,"T")="","",RTD("cqg.rtd",,"StudyData", $P$4, "Bar",, "Close",$Q$4,O38,"All",,,,"T")*100) -> 10.17 | S38: 13.6 | T38: 10.17 | V38: 0
C39: -34 | D39: =IF(RTD("cqg.rtd",,"StudyData", $D$4, "Bar",, "Close",$E$4,C39,"All",,,,"T")="","",RTD("cqg.rtd",,"StudyData", $D$4, "Bar",, "Close",$E$4,C39,"All",,,,"T")*100) -> 9.16 | G39: 13.8 | H39: 9.16 | J39: 0 | O39: -34 | P39: =IF(RTD("cqg.rtd",,"StudyData", $P$4, "Bar",, "Close",$Q$4,O39,"All",,,,"T")="","",RTD("cqg.rtd",,"StudyData", $P$4, "Bar",, "Close",$Q$4,O39,"All",,,,"T")*100) -> 9.21 | S39: 13.8 | T39: 9.21 | V39: 0
C40: -35 | D40: =IF(RTD("cqg.rtd",,"StudyData", $D$4, "Bar",, "Close",$E$4,C40,"All",,,,"T")="","",RTD("cqg.rtd",,"StudyData", $D$4, "Bar",, "Close",$E$4,C40,"All",,,,"T")*100) -> 10.68 | E40: =RTD("cqg.rtd",,"StudyData", $D$4, "Bar",, "Time",$E$4,C40,,,,,"T") -> 2017-08-21 | G40: 14 | H40: 10.68 | J40: 0 | O40: -35 | P40: =IF(RTD("cqg.rtd",,"StudyData", $P$4, "Bar",, "Close",$Q$4,O40,"All",,,,"T")="","",RTD("cqg.rtd",,"StudyData", $P$4, "Bar",, "Close",$Q$4,O40,"All",,,,"T")*100) -> 10.75 | Q40: =RTD("cqg.rtd",,"StudyData", $D$4, "Bar",, "Time",$E$4,O40,,,,,"T") -> 2017-08-21 | S40: 14 | T40: 10.75 | V40: 0
C41: -36 | D41: =IF(RTD("cqg.rtd",,"StudyData", $D$4, "Bar",, "Close",$E$4,C41,"All",,,,"T")="","",RTD("cqg.rtd",,"StudyData", $D$4, "Bar",, "Close",$E$4,C41,"All",,,,"T")*100) -> 11.26 | H41: 11.26 | O41: -36 | P41: =IF(RTD("cqg.rtd",,"StudyData", $P$4, "Bar",, "Close",$Q$4,O41,"All",,,,"T")="","",RTD("cqg.rtd",,"StudyData", $P$4, "Bar",, "Close",$Q$4,O41,"All",,,,"T")*100) -> 11.4 | T41: 11.4
C42: -37 | D42: =IF(RTD("cqg.rtd",,"StudyData", $D$4, "Bar",, "Close",$E$4,C42,"All",,,,"T")="","",RTD("cqg.rtd",,"StudyData", $D$4, "Bar",, "Close",$E$4,C42,"All",,,,"T")*100) -> 11.51 | H42: 11.51 | O42: -37 | P42: =IF(RTD("cqg.rtd",,"StudyData", $P$4, "Bar",, "Close",$Q$4,O42,"All",,,,"T")="","",RTD("cqg.rtd",,"StudyData", $P$4, "Bar",, "Close",$Q$4,O42,"All",,,,"T")*100) -> 11.5 | T42: 11.5
C43: -38 | D43: =IF(RTD("cqg.rtd",,"StudyData", $D$4, "Bar",, "Close",$E$4,C43,"All",,,,"T")="","",RTD("cqg.rtd",,"StudyData", $D$4, "Bar",, "Close",$E$4,C43,"All",,,,"T")*100) -> 8.88 | H43: 8.88 | O43: -38 | P43: =IF(RTD("cqg.rtd",,"StudyData", $P$4, "Bar",, "Close",$Q$4,O43,"All",,,,"T")="","",RTD("cqg.rtd",,"StudyData", $P$4, "Bar",, "Close",$Q$4,O43,"All",,,,"T")*100) -> 8.84 | T43: 8.84
C44: -39 | D44: =IF(RTD("cqg.rtd",,"StudyData", $D$4, "Bar",, "Close",$E$4,C44,"All",,,,"T")="","",RTD("cqg.rtd",,"StudyData", $D$4, "Bar",, "Close",$E$4,C44,"All",,,,"T")*100) -> 8.91 | H44: 8.91 | O44: -39 | P44: =IF(RTD("cqg.rtd",,"StudyData", $P$4, "Bar",, "Close",$Q$4,O44,"All",,,,"T")="","",RTD("cqg.rtd",,"StudyData", $P$4, "Bar",, "Close",$Q$4,O44,"All",,,,"T")*100) -> 9.02 | T44: 9.02
C45: -40 | D45: =IF(RTD("cqg.rtd",,"StudyData", $D$4, "Bar",, "Close",$E$4,C45,"All",,,,"T")="","",RTD("cqg.rtd",,"StudyData", $D$4, "Bar",, "Close",$E$4,C45,"All",,,,"T")*100) -> 9.15 | H45: 9.15 | O45: -40 | P45: =IF(RTD("cqg.rtd",,"StudyData", $P$4, "Bar",, "Close",$Q$4,O45,"All",,,,"T")="","",RTD("cqg.rtd",,"StudyData", $P$4, "Bar",, "Close",$Q$4,O45,"All",,,,"T")*100) -> 9.17 | T45: 9.17
C46: -41 | D46: =IF(RTD("cqg.rtd",,"StudyData", $D$4, "Bar",, "Close",$E$4,C46,"All",,,,"T")="","",RTD("cqg.rtd",,"StudyData", $D$4, "Bar",, "Close",$E$4,C46,"All",,,,"T")*100) -> 11.64 | H46: 11.64 | O46: -41 | P46: =IF(RTD("cqg.rtd",,"StudyData", $P$4, "Bar",, "Close",$Q$4,O46,"All",,,,"T")="","",RTD("cqg.rtd",,"StudyData", $P$4, "Bar",, "Close",$Q$4,O46,"All",,,,"T")*100) -> 11.64 | T46: 11.64
C47: -42 | D47: =IF(RTD("cqg.rtd",,"StudyData", $D$4, "Bar",, "Close",$E$4,C47,"All",,,,"T")="","",RTD("cqg.rtd",,"StudyData", $D$4, "Bar",, "Close",$E$4,C47,"All",,,,"T")*100) -> 11.04 | H47: 11.04 | O47: -42 | P47: =IF(RTD("cqg.rtd",,"StudyData", $P$4, "Bar",, "Close",$Q$4,O47,"All",,,,"T")="","",RTD("cqg.rtd",,"StudyData", $P$4, "Bar",, "Close",$Q$4,O47,"All",,,,"T")*100) -> 11.53 | T47: 11.53
C48: -43 | D48: =IF(RTD("cqg.rtd",,"StudyData", $D$4, "Bar",, "Close",$E$4,C48,"All",,,,"T")="","",RTD("cqg.rtd",,"StudyData", $D$4, "Bar",, "Close",$E$4,C48,"All",,,,"T")*100) -> 8.2 | H48: 8.2 | O48: -43 | P48: =IF(RTD("cqg.rtd",,"StudyData", $P$4, "Bar",, "Close",$Q$4,O48,"All",,,,"T")="","",RTD("cqg.rtd",,"StudyData", $P$4, "Bar",, "Close",$Q$4,O48,"All",,,,"T")*100) -> 8.2 | T48: 8.2
C49: -44 | D49: =IF(RTD("cqg.rtd",,"StudyData", $D$4, "Bar",, "Close",$E$4,C49,"All",,,,"T")="","",RTD("cqg.rtd",,"StudyData", $D$4, "Bar",, "Close",$E$4,C49,"All",,,,"T")*100) -> 8.01 | H49: 8.01 | O49: -44 | P49: =IF(RTD("cqg.rtd",,"StudyData", $P$4, "Bar",, "Close",$Q$4,O49,"All",,,,"T")="","",RTD("cqg.rtd",,"StudyData", $P$4, "Bar",, "Close",$Q$4,O49,"All",,,,"T")*100) -> 8.06 | T49: 8.06
C50: -45 | D50: =IF(RTD("cqg.rtd",,"StudyData", $D$4, "Bar",, "Close",$E$4,C50,"All",,,,"T")="","",RTD("cqg.rtd",,"StudyData", $D$4, "Bar",, "Close",$E$4,C50,"All",,,,"T")*100) -> 7.32 | H50: 7.32 | O50: -45 | P50: =IF(RTD("cqg.rtd",,"StudyData", $P$4, "Bar",, "Close",$Q$4,O50,"All",,,,"T")="","",RTD("cqg.rtd",,"StudyData", $P$4, "Bar",, "Close",$Q$4,O50,"All",,,,"T")*100) -> 7.35 | T50: 7.35
C51: -46 | D51: =IF(RTD("cqg.rtd",,"StudyData", $D$4, "Bar",, "Close",$E$4,C51,"All",,,,"T")="","",RTD("cqg.rtd",,"StudyData", $D$4, "Bar",, "Close",$E$4,C51,"All",,,,"T")*100) -> 7.61 | H51: 7.61 | O51: -46 | P51: =IF(RTD("cqg.rtd",,"StudyData", $P$4, "Bar",, "Close",$Q$4,O51,"All",,,,"T")="","",RTD("cqg.rtd",,"StudyData", $P$4, "Bar",, "Close",$Q$4,O51,"All",,,,"T")*100) -> 7.63 | T51: 7.63
C52: -47 | D52: =IF(RTD("cqg.rtd",,"StudyData", $D$4, "Bar",, "Close",$E$4,C52,"All",,,,"T")="","",RTD("cqg.rtd",,"StudyData", $D$4, "Bar",, "Close",$E$4,C52,"All",,,,"T")*100) -> 7.65 | H52: 7.65 | O52: -47 | P52: =IF(RTD("cqg.rtd",,"StudyData", $P$4, "Bar",, "Close",$Q$4,O52,"All",,,,"T")="","",RTD("cqg.rtd",,"StudyData", $P$4, "Bar",, "Close",$Q$4,O52,"All",,,,"T")*100) -> 7.77 | T52: 7.77
C53: -48 | D53: =IF(RTD("cqg.rtd",,"StudyData", $D$4, "Bar",, "Close",$E$4,C53,"All",,,,"T")="","",RTD("cqg.rtd",,"StudyData", $D$4, "Bar",, "Close",$E$4,C53,"All",,,,"T")*100) -> 7.43 | H53: 7.43 | O53: -48 | P53: =IF(RTD("cqg.rtd",,"StudyData", $P$4, "Bar",, "Close",$Q$4,O53,"All",,,,"T")="","",RTD("cqg.rtd",,"StudyData", $P$4, "Bar",, "Close",$Q$4,O53,"All",,,,"T")*100) -> 7.47 | T53: 7.47
C54: -49 | D54: =IF(RTD("cqg.rtd",,"StudyData", $D$4, "Bar",, "Close",$E$4,C54,"All",,,,"T")="","",RTD("cqg.rtd",,"StudyData", $D$4, "Bar",, "Close",$E$4,C54,"All",,,,"T")*100) -> 7.21 | H54: 7.21 | O54: -49 | P54: =IF(RTD("cqg.rtd",,"StudyData", $P$4, "Bar",, "Close",$Q$4,O54,"All",,,,"T")="","",RTD("cqg.rtd",,"StudyData", $P$4, "Bar",, "Close",$Q$4,O54,"All",,,,"T")*100) -> 7.38 | T54: 7.38
C55: -50 | D55: =IF(RTD("cqg.rtd",,"StudyData", $D$4, "Bar",, "Close",$E$4,C55,"All",,,,"T")="","",RTD("cqg.rtd",,"StudyData", $D$4, "Bar",, "Close",$E$4,C55,"All",,,,"T")*100) -> 7.46 | H55: 7.46 | O55: -50 | P55: =IF(RTD("cqg.rtd",,"StudyData", $P$4, "Bar",, "Close",$Q$4,O55,"All",,,,"T")="","",RTD("cqg.rtd",,"StudyData", $P$4, "Bar",, "Close",$Q$4,O55,"All",,,,"T")*100) -> 7.51 | T55: 7.51
C56: -51 | D56: =IF(RTD("cqg.rtd",,"StudyData", $D$4, "Bar",, "Close",$E$4,C56,"All",,,,"T")="","",RTD("cqg.rtd",,"StudyData", $D$4, "Bar",, "Close",$E$4,C56,"All",,,,"T")*100) -> 7.77 | H56: 7.77 | O56: -51 | P56: =IF(RTD("cqg.rtd",,"StudyData", $P$4, "Bar",, "Close",$Q$4,O56,"All",,,,"T")="","",RTD("cqg.rtd",,"StudyData", $P$4, "Bar",, "Close",$Q$4,O56,"All",,,,"T")*100) -> 7.87 | T56: 7.87
C57: -52 | D57: =IF(RTD("cqg.rtd",,"StudyData", $D$4, "Bar",, "Close",$E$4,C57,"All",,,,"T")="","",RTD("cqg.rtd",,"StudyData", $D$4, "Bar",, "Close",$E$4,C57,"All",,,,"T")*100) -> 7.67 | H57: 7.67 | O57: -52 | P57: =IF(RTD("cqg.rtd",,"StudyData", $P$4, "Bar",, "Close",$Q$4,O57,"All",,,,"T")="","",RTD("cqg.rtd",,"StudyData", $P$4, "Bar",, "Close",$Q$4,O57,"All",,,,"T")*100) -> 7.73 | T57: 7.73
C58: -53 | D58: =IF(RTD("cqg.rtd",,"StudyData", $D$4, "Bar",, "Close",$E$4,C58,"All",,,,"T")="","",RTD("cqg.rtd",,"StudyData", $D$4, "Bar",, "Close",$E$4,C58,"All",,,,"T")*100) -> 7.44 | H58: 7.44 | O58: -53 | P58: =IF(RTD("cqg.rtd",,"StudyData", $P$4, "Bar",, "Close",$Q$4,O58,"All",,,,"T")="","",RTD("cqg.rtd",,"StudyData", $P$4, "Bar",, "Close",$Q$4,O58,"All",,,,"T")*100) -> 7.48 | T58: 7.48
C59: -54 | D59: =IF(RTD("cqg.rtd",,"StudyData", $D$4, "Bar",, "Close",$E$4,C59,"All",,,,"T")="","",RTD("cqg.rtd",,"StudyData", $D$4, "Bar",, "Close",$E$4,C59,"All",,,,"T")*100) -> 7.4 | H59: 7.4 | O59: -54 | P59: =IF(RTD("cqg.rtd",,"StudyData", $P$4, "Bar",, "Close",$Q$4,O59,"All",,,,"T")="","",RTD("cqg.rtd",,"StudyData", $P$4, "Bar",, "Close",$Q$4,O59,"All",,,,"T")*100) -> 7.49 | T59: 7.49
C60: -55 | D60: =IF(RTD("cqg.rtd",,"StudyData", $D$4, "Bar",, "Close",$E$4,C60,"All",,,,"T")="","",RTD("cqg.rtd",,"StudyData", $D$4, "Bar",, "Close",$E$4,C60,"All",,,,"T")*100) -> 7.49 | H60: 7.49 | O60: -55 | P60: =IF(RTD("cqg.rtd",,"StudyData", $P$4, "Bar",, "Close",$Q$4,O60,"All",,,,"T")="","",RTD("cqg.rtd",,"StudyData", $P$4, "Bar",, "Close",$Q$4,O60,"All",,,,"T")*100) -> 7.57 | T60: 7.57
C61: -56 | D61: =IF(RTD("cqg.rtd",,"StudyData", $D$4, "Bar",, "Close",$E$4,C61,"All",,,,"T")="","",RTD("cqg.rtd",,"StudyData", $D$4, "Bar",, "Close",$E$4,C61,"All",,,,"T")*100) -> 7.81 | H61: 7.81 | O61: -56 | P61: =IF(RTD("cqg.rtd",,"StudyData", $P$4, "Bar",, "Close",$Q$4,O61,"All",,,,"T")="","",RTD("cqg.rtd",,"StudyData", $P$4, "Bar",, "Close",$Q$4,O61,"All",,,,"T")*100) -> 7.82 | T61: 7.82
C62: -57 | D62: =IF(RTD("cqg.rtd",,"StudyData", $D$4, "Bar",, "Close",$E$4,C62,"All",,,,"T")="","",RTD("cqg.rtd",,"StudyData", $D$4, "Bar",, "Close",$E$4,C62,"All",,,,"T")*100) -> 7.83 | H62: 7.83 | O62: -57 | P62: =IF(RTD("cqg.rtd",,"StudyData", $P$4, "Bar",, "Close",$Q$4,O62,"All",,,,"T")="","",RTD("cqg.rtd",,"StudyData", $P$4, "Bar",, "Close",$Q$4,O62,"All",,,,"T")*100) -> 7.88 | T62: 7.88
C63: -58 | D63: =IF(RTD("cqg.rtd",,"StudyData", $D$4, "Bar",, "Close",$E$4,C63,"All",,,,"T")="","",RTD("cqg.rtd",,"StudyData", $D$4, "Bar",, "Close",$E$4,C63,"All",,,,"T")*100) -> 7.81 | H63: 7.81 | O63: -58 | P63: =IF(RTD("cqg.rtd",,"StudyData", $P$4, "Bar",, "Close",$Q$4,O63,"All",,,,"T")="","",RTD("cqg.rtd",,"StudyData", $P$4, "Bar",, "Close",$Q$4,O63,"All",,,,"T")*100) -> 7.83 | T63: 7.83
C64: -59 | D64: =IF(RTD("cqg.rtd",,"StudyData", $D$4, "Bar",, "Close",$E$4,C64,"All",,,,"T")="","",RTD("cqg.rtd",,"StudyData", $D$4, "Bar",, "Close",$E$4,C64,"All",,,,"T")*100) -> 7.95 | H64: 7.95 | O64: -59 | P64: =IF(RTD("cqg.rtd",,"StudyData", $P$4, "Bar",, "Close",$Q$4,O64,"All",,,,"T")="","",RTD("cqg.rtd",,"StudyData", $P$4, "Bar",, "Close",$Q$4,O64,"All",,,,"T")*100) -> 8.01 | T64: 8.01
C65: -60 | D65: =IF(RTD("cqg.rtd",,"StudyData", $D$4, "Bar",, "Close",$E$4,C65,"All",,,,"T")="","",RTD("cqg.rtd",,"StudyData", $D$4, "Bar",, "Close",$E$4,C65,"All",,,,"T")*100) -> 7.99 | H65: 7.99 | O65: -60 | P65: =IF(RTD("cqg.rtd",,"StudyData", $P$4, "Bar",, "Close",$Q$4,O65,"All",,,,"T")="","",RTD("cqg.rtd",,"StudyData", $P$4, "Bar",, "Close",$Q$4,O65,"All",,,,"T")*100) -> 8.03 | T65: 8.03
C66: -61 | D66: =IF(RTD("cqg.rtd",,"StudyData", $D$4, "Bar",, "Close",$E$4,C66,"All",,,,"T")="","",RTD("cqg.rtd",,"StudyData", $D$4, "Bar",, "Close",$E$4,C66,"All",,,,"T")*100) -> 8.23 | H66: 8.23 | O66: -61 | P66: =IF(RTD("cqg.rtd",,"StudyData", $P$4, "Bar",, "Close",$Q$4,O66,"All",,,,"T")="","",RTD("cqg.rtd",,"StudyData", $P$4, "Bar",, "Close",$Q$4,O66,"All",,,,"T")*100) -> 8.23 | T66: 8.23
C67: -62 | D67: =IF(RTD("cqg.rtd",,"StudyData", $D$4, "Bar",, "Close",$E$4,C67,"All",,,,"T")="","",RTD("cqg.rtd",,"StudyData", $D$4, "Bar",, "Close",$E$4,C67,"All",,,,"T")*100) -> 8.52 | H67: 8.52 | O67: -62 | P67: =IF(RTD("cqg.rtd",,"StudyData", $P$4, "Bar",, "Close",$Q$4,O67,"All",,,,"T")="","",RTD("cqg.rtd",,"StudyData", $P$4, "Bar",, "Close",$Q$4,O67,"All",,,,"T")*100) -> 8.53 | T67: 8.53
C68: -63 | D68: =IF(RTD("cqg.rtd",,"StudyData", $D$4, "Bar",, "Close",$E$4,C68,"All",,,,"T")="","",RTD("cqg.rtd",,"StudyData", $D$4, "Bar",, "Close",$E$4,C68,"All",,,,"T")*100) -> 8.81 | H68: 8.81 | O68: -63 | P68: =IF(RTD("cqg.rtd",,"StudyData", $P$4, "Bar",, "Close",$Q$4,O68,"All",,,,"T")="","",RTD("cqg.rtd",,"StudyData", $P$4, "Bar",, "Close",$Q$4,O68,"All",,,,"T")*100) -> 8.82 | T68: 8.82
C69: -64 | D69: =IF(RTD("cqg.rtd",,"StudyData", $D$4, "Bar",, "Close",$E$4,C69,"All",,,,"T")="","",RTD("cqg.rtd",,"StudyData", $D$4, "Bar",, "Close",$E$4,C69,"All",,,,"T")*100) -> 9.28 | H69: 9.28 | O69: -64 | P69: =IF(RTD("cqg.rtd",,"StudyData", $P$4, "Bar",, "Close",$Q$4,O69,"All",,,,"T")="","",RTD("cqg.rtd",,"StudyData", $P$4, "Bar",, "Close",$Q$4,O69,"All",,,,"T")*100) -> 9.28 | T69: 9.28
C70: -65 | D70: =IF(RTD("cqg.rtd",,"StudyData", $D$4, "Bar",, "Close",$E$4,C70,"All",,,,"T")="","",RTD("cqg.rtd",,"StudyData", $D$4, "Bar",, "Close",$E$4,C70,"All",,,,"T")*100) -> 9.34 | H70: =D70 -> 9.34 | O70: -65 | P70: =IF(RTD("cqg.rtd",,"StudyData", $P$4, "Bar",, "Close",$Q$4,O70,"All",,,,"T")="","",RTD("cqg.rtd",,"StudyData", $P$4, "Bar",, "Close",$Q$4,O70,"All",,,,"T")*100) -> 9.37 | T70: =P70 -> 9.37
C71: =C70-1 -> -66 | D71: =IF(RTD("cqg.rtd",,"StudyData", $D$4, "Bar",, "Close",$E$4,C71,"All",,,,"T")="","",RTD("cqg.rtd",,"StudyData", $D$4, "Bar",, "Close",$E$4,C71,"All",,,,"T")*100) -> 9.61 | H71: 9.61 | O71: =O70-1 -> -66 | P71: =IF(RTD("cqg.rtd",,"StudyData", $P$4, "Bar",, "Close",$Q$4,O71,"All",,,,"T")="","",RTD("cqg.rtd",,"StudyData", $P$4, "Bar",, "Close",$Q$4,O71,"All",,,,"T")*100) -> 9.61 | T71: 9.61
C72: -67 | D72: =IF(RTD("cqg.rtd",,"StudyData", $D$4, "Bar",, "Close",$E$4,C72,"All",,,,"T")="","",RTD("cqg.rtd",,"StudyData", $D$4, "Bar",, "Close",$E$4,C72,"All",,,,"T")*100) -> 10.28 | H72: 10.28 | O72: -67 | P72: =IF(RTD("cqg.rtd",,"StudyData", $P$4, "Bar",, "Close",$Q$4,O72,"All",,,,"T")="","",RTD("cqg.rtd",,"StudyData", $P$4, "Bar",, "Close",$Q$4,O72,"All",,,,"T")*100) -> 10.31 | T72: 10.31
C73: -68 | D73: =IF(RTD("cqg.rtd",,"StudyData", $D$4, "Bar",, "Close",$E$4,C73,"All",,,,"T")="","",RTD("cqg.rtd",,"StudyData", $D$4, "Bar",, "Close",$E$4,C73,"All",,,,"T")*100) -> 9.39 | E73: =RTD("cqg.rtd",,"StudyData", $D$4, "Bar",, "Time",$E$4,C73,,,,,"T") -> 2017-07-05 | H73: 9.39 | O73: -68 | P73: =IF(RTD("cqg.rtd",,"StudyData", $P$4, "Bar",, "Close",$Q$4,O73,"All",,,,"T")="","",RTD("cqg.rtd",,"StudyData", $P$4, "Bar",, "Close",$Q$4,O73,"All",,,,"T")*100) -> 9.5 | Q73: =RTD("cqg.rtd",,"StudyData", $D$4, "Bar",, "Time",$E$4,O73,,,,,"T") -> 2017-07-05 | T73: 9.5
C74: -69 | D74: =IF(RTD("cqg.rtd",,"StudyData", $D$4, "Bar",, "Close",$E$4,C74,"All",,,,"T")="","",RTD("cqg.rtd",,"StudyData", $D$4, "Bar",, "Close",$E$4,C74,"All",,,,"T")*100) -> 9.79 | H74: 9.79 | O74: -69 | P74: =IF(RTD("cqg.rtd",,"StudyData", $P$4, "Bar",, "Close",$Q$4,O74,"All",,,,"T")="","",RTD("cqg.rtd",,"StudyData", $P$4, "Bar",, "Close",$Q$4,O74,"All",,,,"T")*100) -> 9.49 | T74: 9.49
C75: -70 | D75: =IF(RTD("cqg.rtd",,"StudyData", $D$4, "Bar",, "Close",$E$4,C75,"All",,,,"T")="","",RTD("cqg.rtd",,"StudyData", $D$4, "Bar",, "Close",$E$4,C75,"All",,,,"T")*100) -> 9.58 | H75: 9.58 | O75: -70 | P75: =IF(RTD("cqg.rtd",,"StudyData", $P$4, "Bar",, "Close",$Q$4,O75,"All",,,,"T")="","",RTD("cqg.rtd",,"StudyData", $P$4, "Bar",, "Close",$Q$4,O75,"All",,,,"T")*100) -> 9.71 | T75: 9.71
C76: -71 | D76: =IF(RTD("cqg.rtd",,"StudyData", $D$4, "Bar",, "Close",$E$4,C76,"All",,,,"T")="","",RTD("cqg.rtd",,"StudyData", $D$4, "Bar",, "Close",$E$4,C76,"All",,,,"T")*100) -> 9.51 | H76: 9.51 | O76: -71 | P76: =IF(RTD("cqg.rtd",,"StudyData", $P$4, "Bar",, "Close",$Q$4,O76,"All",,,,"T")="","",RTD("cqg.rtd",,"StudyData", $P$4, "Bar",, "Close",$Q$4,O76,"All",,,,"T")*100) -> 9.84 | T76: 9.84
C77: -72 | D77: =IF(RTD("cqg.rtd",,"StudyData", $D$4, "Bar",, "Close",$E$4,C77,"All",,,,"T")="","",RTD("cqg.rtd",,"StudyData", $D$4, "Bar",, "Close",$E$4,C77,"All",,,,"T")*100) -> 8.42 | H77: 8.42 | O77: -72 | P77: =IF(RTD("cqg.rtd",,"StudyData", $P$4, "Bar",, "Close",$Q$4,O77,"All",,,,"T")="","",RTD("cqg.rtd",,"StudyData", $P$4, "Bar",, "Close",$Q$4,O77,"All",,,,"T")*100) -> 9.31 | T77: 9.31
C78: -73 | D78: =IF(RTD("cqg.rtd",,"StudyData", $D$4, "Bar",, "Close",$E$4,C78,"All",,,,"T")="","",RTD("cqg.rtd",,"StudyData", $D$4, "Bar",, "Close",$E$4,C78,"All",,,,"T")*100) -> 9.96 | H78: 9.96 | O78: -73 | P78: =IF(RTD("cqg.rtd",,"StudyData", $P$4, "Bar",, "Close",$Q$4,O78,"All",,,,"T")="","",RTD("cqg.rtd",,"StudyData", $P$4, "Bar",, "Close",$Q$4,O78,"All",,,,"T")*100) -> 9.32 | T78: 9.32
C79: -74 | D79: =IF(RTD("cqg.rtd",,"StudyData", $D$4, "Bar",, "Close",$E$4,C79,"All",,,,"T")="","",RTD("cqg.rtd",,"StudyData", $D$4, "Bar",, "Close",$E$4,C79,"All",,,,"T")*100) -> 8.94 | H79: 8.94 | O79: -74 | P79: =IF(RTD("cqg.rtd",,"StudyData", $P$4, "Bar",, "Close",$Q$4,O79,"All",,,,"T")="","",RTD("cqg.rtd",,"StudyData", $P$4, "Bar",, "Close",$Q$4,O79,"All",,,,"T")*100) -> 8.89 | T79: 8.89
C80: -75 | D80: =IF(RTD("cqg.rtd",,"StudyData", $D$4, "Bar",, "Close",$E$4,C80,"All",,,,"T")="","",RTD("cqg.rtd",,"StudyData", $D$4, "Bar",, "Close",$E$4,C80,"All",,,,"T")*100) -> 9.16 | H80: 9.16 | O80: -75 | P80: =IF(RTD("cqg.rtd",,"StudyData", $P$4, "Bar",, "Close",$Q$4,O80,"All",,,,"T")="","",RTD("cqg.rtd",,"StudyData", $P$4, "Bar",, "Close",$Q$4,O80,"All",,,,"T")*100) -> 9.18 | T80: 9.18
C81: -76 | D81: =IF(RTD("cqg.rtd",,"StudyData", $D$4, "Bar",, "Close",$E$4,C81,"All",,,,"T")="","",RTD("cqg.rtd",,"StudyData", $D$4, "Bar",, "Close",$E$4,C81,"All",,,,"T")*100) -> 9.43 | H81: 9.43 | O81: -76 | P81: =IF(RTD("cqg.rtd",,"StudyData", $P$4, "Bar",, "Close",$Q$4,O81,"All",,,,"T")="","",RTD("cqg.rtd",,"StudyData", $P$4, "Bar",, "Close",$Q$4,O81,"All",,,,"T")*100) -> 9.42 | T81: 9.42
C82: -77 | D82: =IF(RTD("cqg.rtd",,"StudyData", $D$4, "Bar",, "Close",$E$4,C82,"All",,,,"T")="","",RTD("cqg.rtd",,"StudyData", $D$4, "Bar",, "Close",$E$4,C82,"All",,,,"T")*100) -> 9.67 | H82: 9.67 | O82: -77 | P82: =IF(RTD("cqg.rtd",,"StudyData", $P$4, "Bar",, "Close",$Q$4,O82,"All",,,,"T")="","",RTD("cqg.rtd",,"StudyData", $P$4, "Bar",, "Close",$Q$4,O82,"All",,,,"T")*100) -> 9.44 | T82: 9.44
C83: -78 | D83: =IF(RTD("cqg.rtd",,"StudyData", $D$4, "Bar",, "Close",$E$4,C83,"All",,,,"T")="","",RTD("cqg.rtd",,"StudyData", $D$4, "Bar",, "Close",$E$4,C83,"All",,,,"T")*100) -> 9.58 | H83: 9.58 | O83: -78 | P83: =IF(RTD("cqg.rtd",,"StudyData", $P$4, "Bar",, "Close",$Q$4,O83,"All",,,,"T")="","",RTD("cqg.rtd",,"StudyData", $P$4, "Bar",, "Close",$Q$4,O83,"All",,,,"T")*100) -> 9.37 | T83: 9.37
C84: -79 | D84: =IF(RTD("cqg.rtd",,"StudyData", $D$4, "Bar",, "Close",$E$4,C84,"All",,,,"T")="","",RTD("cqg.rtd",,"StudyData", $D$4, "Bar",, "Close",$E$4,C84,"All",,,,"T")*100) -> 9.15 | H84: 9.15 | O84: -79 | P84: =IF(RTD("cqg.rtd",,"StudyData", $P$4, "Bar",, "Close",$Q$4,O84,"All",,,,"T")="","",RTD("cqg.rtd",,"StudyData", $P$4, "Bar",, "Close",$Q$4,O84,"All",,,,"T")*100) -> 9.15 | T84: 9.15
C85: -80 | D85: =IF(RTD("cqg.rtd",,"StudyData", $D$4, "Bar",, "Close",$E$4,C85,"All",,,,"T")="","",RTD("cqg.rtd",,"StudyData", $D$4, "Bar",, "Close",$E$4,C85,"All",,,,"T")*100) -> 9.6 | H85: 9.6 | O85: -80 | P85: =IF(RTD("cqg.rtd",,"StudyData", $P$4, "Bar",, "Close",$Q$4,O85,"All",,,,"T")="","",RTD("cqg.rtd",,"StudyData", $P$4, "Bar",, "Close",$Q$4,O85,"All",,,,"T")*100) -> 9.6 | T85: 9.6
C86: -81 | D86: =IF(RTD("cqg.rtd",,"StudyData", $D$4, "Bar",, "Close",$E$4,C86,"All",,,,"T")="","",RTD("cqg.rtd",,"StudyData", $D$4, "Bar",, "Close",$E$4,C86,"All",,,,"T")*100) -> 9.9 | H86: 9.9 | O86: -81 | P86: =IF(RTD("cqg.rtd",,"StudyData", $P$4, "Bar",, "Close",$Q$4,O86,"All",,,,"T")="","",RTD("cqg.rtd",,"StudyData", $P$4, "Bar",, "Close",$Q$4,O86,"All",,,,"T")*100) -> 9.82 | T86: 9.82
C87: -82 | D87: =IF(RTD("cqg.rtd",,"StudyData", $D$4, "Bar",, "Close",$E$4,C87,"All",,,,"T")="","",RTD("cqg.rtd",,"StudyData", $D$4, "Bar",, "Close",$E$4,C87,"All",,,,"T")*100) -> 9.81 | H87: 9.81 | O87: -82 | P87: =IF(RTD("cqg.rtd",,"StudyData", $P$4, "Bar",, "Close",$Q$4,O87,"All",,,,"T")="","",RTD("cqg.rtd",,"StudyData", $P$4, "Bar",, "Close",$Q$4,O87,"All",,,,"T")*100) -> 9.65 | T87: 9.65
C88: -83 | D88: =IF(RTD("cqg.rtd",,"StudyData", $D$4, "Bar",, "Close",$E$4,C88,"All",,,,"T")="","",RTD("cqg.rtd",,"StudyData", $D$4, "Bar",, "Close",$E$4,C88,"All",,,,"T")*100) -> 9.6 | H88: 9.6 | O88: -83 | P88: =IF(RTD("cqg.rtd",,"StudyData", $P$4, "Bar",, "Close",$Q$4,O88,"All",,,,"T")="","",RTD("cqg.rtd",,"StudyData", $P$4, "Bar",, "Close",$Q$4,O88,"All",,,,"T")*100) -> 9.66 | T88: 9.66
C89: -84 | D89: =IF(RTD("cqg.rtd",,"StudyData", $D$4, "Bar",, "Close",$E$4,C89,"All",,,,"T")="","",RTD("cqg.rtd",,"StudyData", $D$4, "Bar",, "Close",$E$4,C89,"All",,,,"T")*100) -> 10.05 | H89: 10.05 | O89: -84 | P89: =IF(RTD("cqg.rtd",,"StudyData", $P$4, "Bar",, "Close",$Q$4,O89,"All",,,,"T")="","",RTD("cqg.rtd",,"StudyData", $P$4, "Bar",, "Close",$Q$4,O89,"All",,,,"T")*100) -> 10.07 | T89: 10.07
C90: -85 | D90: =IF(RTD("cqg.rtd",,"StudyData", $D$4, "Bar",, "Close",$E$4,C90,"All",,,,"T")="","",RTD("cqg.rtd",,"StudyData", $D$4, "Bar",, "Close",$E$4,C90,"All",,,,"T")*100) -> 9.86 | H90: 9.86 | O90: -85 | P90: =IF(RTD("cqg.rtd",,"StudyData", $P$4, "Bar",, "Close",$Q$4,O90,"All",,,,"T")="","",RTD("cqg.rtd",,"StudyData", $P$4, "Bar",, "Close",$Q$4,O90,"All",,,,"T")*100) -> 9.99 | T90: 9.99
C91: -86 | D91: =IF(RTD("cqg.rtd",,"StudyData", $D$4, "Bar",, "Close",$E$4,C91,"All",,,,"T")="","",RTD("cqg.rtd",,"StudyData", $D$4, "Bar",, "Close",$E$4,C91,"All",,,,"T")*100) -> 9.85 | H91: 9.85 | O91: -86 | P91: =IF(RTD("cqg.rtd",,"StudyData", $P$4, "Bar",, "Close",$Q$4,O91,"All",,,,"T")="","",RTD("cqg.rtd",,"StudyData", $P$4, "Bar",, "Close",$Q$4,O91,"All",,,,"T")*100) -> 10.14 | T91: 10.14
C92: -87 | D92: =IF(RTD("cqg.rtd",,"StudyData", $D$4, "Bar",, "Close",$E$4,C92,"All",,,,"T")="","",RTD("cqg.rtd",,"StudyData", $D$4, "Bar",, "Close",$E$4,C92,"All",,,,"T")*100) -> 10.3 | H92: 10.3 | O92: -87 | P92: =IF(RTD("cqg.rtd",,"StudyData", $P$4, "Bar",, "Close",$Q$4,O92,"All",,,,"T")="","",RTD("cqg.rtd",,"StudyData", $P$4, "Bar",, "Close",$Q$4,O92,"All",,,,"T")*100) -> 10.16 | T92: 10.16
C93: -88 | D93: =IF(RTD("cqg.rtd",,"StudyData", $D$4, "Bar",, "Close",$E$4,C93,"All",,,,"T")="","",RTD("cqg.rtd",,"StudyData", $D$4, "Bar",, "Close",$E$4,C93,"All",,,,"T")*100) -> 10.36 | H93: 10.36 | O93: -88 | P93: =IF(RTD("cqg.rtd",,"StudyData", $P$4, "Bar",, "Close",$Q$4,O93,"All",,,,"T")="","",RTD("cqg.rtd",,"StudyData", $P$4, "Bar",, "Close",$Q$4,O93,"All",,,,"T")*100) -> 10.11 | T93: 10.11
C94: -89 | D94: =IF(RTD("cqg.rtd",,"StudyData", $D$4, "Bar",, "Close",$E$4,C94,"All",,,,"T")="","",RTD("cqg.rtd",,"StudyData", $D$4, "Bar",, "Close",$E$4,C94,"All",,,,"T")*100) -> 9.91 | H94: 9.91 | O94: -89 | P94: =IF(RTD("cqg.rtd",,"StudyData", $P$4, "Bar",, "Close",$Q$4,O94,"All",,,,"T")="","",RTD("cqg.rtd",,"StudyData", $P$4, "Bar",, "Close",$Q$4,O94,"All",,,,"T")*100) -> 10 | T94: 10
C95: -90 | D95: =IF(RTD("cqg.rtd",,"StudyData", $D$4, "Bar",, "Close",$E$4,C95,"All",,,,"T")="","",RTD("cqg.rtd",,"StudyData", $D$4, "Bar",, "Close",$E$4,C95,"All",,,,"T")*100) -> 8.81 | H95: 8.81 | O95: -90 | P95: =IF(RTD("cqg.rtd",,"StudyData", $P$4, "Bar",, "Close",$Q$4,O95,"All",,,,"T")="","",RTD("cqg.rtd",,"StudyData", $P$4, "Bar",, "Close",$Q$4,O95,"All",,,,"T")*100) -> 8.83 | T95: 8.83
C96: -91 | D96: =IF(RTD("cqg.rtd",,"StudyData", $D$4, "Bar",, "Close",$E$4,C96,"All",,,,"T")="","",RTD("cqg.rtd",,"StudyData", $D$4, "Bar",, "Close",$E$4,C96,"All",,,,"T")*100) -> 8.6 | H96: 8.6 | O96: -91 | P96: =IF(RTD("cqg.rtd",,"StudyData", $P$4, "Bar",, "Close",$Q$4,O96,"All",,,,"T")="","",RTD("cqg.rtd",,"StudyData", $P$4, "Bar",, "Close",$Q$4,O96,"All",,,,"T")*100) -> 8.66 | T96: 8.66
C97: -92 | D97: =IF(RTD("cqg.rtd",,"StudyData", $D$4, "Bar",, "Close",$E$4,C97,"All",,,,"T")="","",RTD("cqg.rtd",,"StudyData", $D$4, "Bar",, "Close",$E$4,C97,"All",,,,"T")*100) -> 8.21 | H97: 8.21 | O97: -92 | P97: =IF(RTD("cqg.rtd",,"StudyData", $P$4, "Bar",, "Close",$Q$4,O97,"All",,,,"T")="","",RTD("cqg.rtd",,"StudyData", $P$4, "Bar",, "Close",$Q$4,O97,"All",,,,"T")*100) -> 9.64 | T97: 9.64
C98: -93 | D98: =IF(RTD("cqg.rtd",,"StudyData", $D$4, "Bar",, "Close",$E$4,C98,"All",,,,"T")="","",RTD("cqg.rtd",,"StudyData", $D$4, "Bar",, "Close",$E$4,C98,"All",,,,"T")*100) -> 8.5 | H98: 8.5 | O98: -93 | P98: =IF(RTD("cqg.rtd",,"StudyData", $P$4, "Bar",, "Close",$Q$4,O98,"All",,,,"T")="","",RTD("cqg.rtd",,"StudyData", $P$4, "Bar",, "Close",$Q$4,O98,"All",,,,"T")*100) -> 8.98 | T98: 8.98
C99: -94 | D99: =IF(RTD("cqg.rtd",,"StudyData", $D$4, "Bar",, "Close",$E$4,C99,"All",,,,"T")="","",RTD("cqg.rtd",,"StudyData", $D$4, "Bar",, "Close",$E$4,C99,"All",,,,"T")*100) -> 7.41 | H99: 7.41 | O99: -94 | P99: =IF(RTD("cqg.rtd",,"StudyData", $P$4, "Bar",, "Close",$Q$4,O99,"All",,,,"T")="","",RTD("cqg.rtd",,"StudyData", $P$4, "Bar",, "Close",$Q$4,O99,"All",,,,"T")*100) -> 8.4 | T99: 8.4
C100: -95 | D100: =IF(RTD("cqg.rtd",,"StudyData", $D$4, "Bar",, "Close",$E$4,C100,"All",,,,"T")="","",RTD("cqg.rtd",,"StudyData", $D$4, "Bar",, "Close",$E$4,C100,"All",,,,"T")*100) -> 8.37 | H100: 8.37 | O100: -95 | P100: =IF(RTD("cqg.rtd",,"StudyData", $P$4, "Bar",, "Close",$Q$4,O100,"All",,,,"T")="","",RTD("cqg.rtd",,"StudyData", $P$4, "Bar",, "Close",$Q$4,O100,"All",,,,"T")*100) -> 8.53 | T100: 8.53
C101: -96 | D101: =IF(RTD("cqg.rtd",,"StudyData", $D$4, "Bar",, "Close",$E$4,C101,"All",,,,"T")="","",RTD("cqg.rtd",,"StudyData", $D$4, "Bar",, "Close",$E$4,C101,"All",,,,"T")*100) -> 8.17 | H101: 8.17 | O101: -96 | P101: =IF(RTD("cqg.rtd",,"StudyData", $P$4, "Bar",, "Close",$Q$4,O101,"All",,,,"T")="","",RTD("cqg.rtd",,"StudyData", $P$4, "Bar",, "Close",$Q$4,O101,"All",,,,"T")*100) -> 8.86 | T101: 8.86
C102: -97 | D102: =IF(RTD("cqg.rtd",,"StudyData", $D$4, "Bar",, "Close",$E$4,C102,"All",,,,"T")="","",RTD("cqg.rtd",,"StudyData", $D$4, "Bar",, "Close",$E$4,C102,"All",,,,"T")*100) -> 8.89 | H102: 8.89 | O102: -97 | P102: =IF(RTD("cqg.rtd",,"StudyData", $P$4, "Bar",, "Close",$Q$4,O102,"All",,,,"T")="","",RTD("cqg.rtd",,"StudyData", $P$4, "Bar",, "Close",$Q$4,O102,"All",,,,"T")*100) -> 8.73 | T102: 8.73
C103: -98 | D103: =IF(RTD("cqg.rtd",,"StudyData", $D$4, "Bar",, "Close",$E$4,C103,"All",,,,"T")="","",RTD("cqg.rtd",,"StudyData", $D$4, "Bar",, "Close",$E$4,C103,"All",,,,"T")*100) -> 8.66 | H103: 8.66 | O103: -98 | P103: =IF(RTD("cqg.rtd",,"StudyData", $P$4, "Bar",, "Close",$Q$4,O103,"All",,,,"T")="","",RTD("cqg.rtd",,"StudyData", $P$4, "Bar",, "Close",$Q$4,O103,"All",,,,"T")*100) -> 9.05 | T103: 9.05
C104: -99 | D104: =IF(RTD("cqg.rtd",,"StudyData", $D$4, "Bar",, "Close",$E$4,C104,"All",,,,"T")="","",RTD("cqg.rtd",,"StudyData", $D$4, "Bar",, "Close",$E$4,C104,"All",,,,"T")*100) -> 9.7 | E104: =RTD("cqg.rtd",,"StudyData", $D$4, "Bar",, "Time",$E$4,C104,,,,,"T") -> 2017-05-19 | H104: 9.7 | O104: -99 | P104: =IF(RTD("cqg.rtd",,"StudyData", $P$4, "Bar",, "Close",$Q$4,O104,"All",,,,"T")="","",RTD("cqg.rtd",,"StudyData", $P$4, "Bar",, "Close",$Q$4,O104,"All",,,,"T")*100) -> 9.73 | Q104: =RTD("cqg.rtd",,"StudyData", $D$4, "Bar",, "Time",$E$4,O104,,,,,"T") -> 2017-05-19 | T104: 9.73
C105: -100 | D105: =IF(RTD("cqg.rtd",,"StudyData", $D$4, "Bar",, "Close",$E$4,C105,"All",,,,"T")="","",RTD("cqg.rtd",,"StudyData", $D$4, "Bar",, "Close",$E$4,C105,"All",,,,"T")*100) -> 11.16 | H105: 11.16 | O105: -100 | P105: =IF(RTD("cqg.rtd",,"StudyData", $P$4, "Bar",, "Close",$Q$4,O105,"All",,,,"T")="","",RTD("cqg.rtd",,"StudyData", $P$4, "Bar",, "Close",$Q$4,O105,"All",,,,"T")*100) -> 11.19 | T105: 11.19
C106: -101 | D106: =IF(RTD("cqg.rtd",,"StudyData", $D$4, "Bar",, "Close",$E$4,C106,"All",,,,"T")="","",RTD("cqg.rtd",,"StudyData", $D$4, "Bar",, "Close",$E$4,C106,"All",,,,"T")*100) -> 12.08 | H106: 12.08 | O106: -101 | P106: =IF(RTD("cqg.rtd",,"StudyData", $P$4, "Bar",, "Close",$Q$4,O106,"All",,,,"T")="","",RTD("cqg.rtd",,"StudyData", $P$4, "Bar",, "Close",$Q$4,O106,"All",,,,"T")*100) -> 11.67 | T106: 11.67
C107: -102 | D107: =IF(RTD("cqg.rtd",,"StudyData", $D$4, "Bar",, "Close",$E$4,C107,"All",,,,"T")="","",RTD("cqg.rtd",,"StudyData", $D$4, "Bar",, "Close",$E$4,C107,"All",,,,"T")*100) -> 8.55 | H107: 8.55 | O107: -102 | P107: =IF(RTD("cqg.rtd",,"StudyData", $P$4, "Bar",, "Close",$Q$4,O107,"All",,,,"T")="","",RTD("cqg.rtd",,"StudyData", $P$4, "Bar",, "Close",$Q$4,O107,"All",,,,"T")*100) -> 8.7 | T107: 8.7
C108: -103 | D108: =IF(RTD("cqg.rtd",,"StudyData", $D$4, "Bar",, "Close",$E$4,C108,"All",,,,"T")="","",RTD("cqg.rtd",,"StudyData", $D$4, "Bar",, "Close",$E$4,C108,"All",,,,"T")*100) -> 8.36 | H108: 8.36 | O108: -103 | P108: =IF(RTD("cqg.rtd",,"StudyData", $P$4, "Bar",, "Close",$Q$4,O108,"All",,,,"T")="","",RTD("cqg.rtd",,"StudyData", $P$4, "Bar",, "Close",$Q$4,O108,"All",,,,"T")*100) -> 8.93 | T108: 8.93
C109: -104 | D109: =IF(RTD("cqg.rtd",,"StudyData", $D$4, "Bar",, "Close",$E$4,C109,"All",,,,"T")="","",RTD("cqg.rtd",,"StudyData", $D$4, "Bar",, "Close",$E$4,C109,"All",,,,"T")*100) -> 9.12 | H109: 9.12 | O109: -104 | P109: =IF(RTD("cqg.rtd",,"StudyData", $P$4, "Bar",, "Close",$Q$4,O109,"All",,,,"T")="","",RTD("cqg.rtd",,"StudyData", $P$4, "Bar",, "Close",$Q$4,O109,"All",,,,"T")*100) -> 9.08 | T109: 9.08
C110: -105 | D110: =IF(RTD("cqg.rtd",,"StudyData", $D$4, "Bar",, "Close",$E$4,C110,"All",,,,"T")="","",RTD("cqg.rtd",,"StudyData", $D$4, "Bar",, "Close",$E$4,C110,"All",,,,"T")*100) -> 8.85 | H110: 8.85 | O110: -105 | P110: =IF(RTD("cqg.rtd",,"StudyData", $P$4, "Bar",, "Close",$Q$4,O110,"All",,,,"T")="","",RTD("cqg.rtd",,"StudyData", $P$4, "Bar",, "Close",$Q$4,O110,"All",,,,"T")*100) -> 8.65 | T110: 8.65
C111: -106 | D111: =IF(RTD("cqg.rtd",,"StudyData", $D$4, "Bar",, "Close",$E$4,C111,"All",,,,"T")="","",RTD("cqg.rtd",,"StudyData", $D$4, "Bar",, "Close",$E$4,C111,"All",,,,"T")*100) -> 8.5 | H111: 8.5 | O111: -106 | P111: =IF(RTD("cqg.rtd",,"StudyData", $P$4, "Bar",, "Close",$Q$4,O111,"All",,,,"T")="","",RTD("cqg.rtd",,"StudyData", $P$4, "Bar",, "Close",$Q$4,O111,"All",,,,"T")*100) -> 8.33 | T111: 8.33
C112: -107 | D112: =IF(RTD("cqg.rtd",,"StudyData", $D$4, "Bar",, "Close",$E$4,C112,"All",,,,"T")="","",RTD("cqg.rtd",,"StudyData", $D$4, "Bar",, "Close",$E$4,C112,"All",,,,"T")*100) -> 8.42 | H112: 8.42 | O112: -107 | P112: =IF(RTD("cqg.rtd",,"StudyData", $P$4, "Bar",, "Close",$Q$4,O112,"All",,,,"T")="","",RTD("cqg.rtd",,"StudyData", $P$4, "Bar",, "Close",$Q$4,O112,"All",,,,"T")*100) -> 8.23 | T112: 8.23
C113: -108 | D113: =IF(RTD("cqg.rtd",,"StudyData", $D$4, "Bar",, "Close",$E$4,C113,"All",,,,"T")="","",RTD("cqg.rtd",,"StudyData", $D$4, "Bar",, "Close",$E$4,C113,"All",,,,"T")*100) -> 8.15 | H113: 8.15 | O113: -108 | P113: =IF(RTD("cqg.rtd",,"StudyData", $P$4, "Bar",, "Close",$Q$4,O113,"All",,,,"T")="","",RTD("cqg.rtd",,"StudyData", $P$4, "Bar",, "Close",$Q$4,O113,"All",,,,"T")*100) -> 8.06 | T113: 8.06
C114: -109 | D114: =IF(RTD("cqg.rtd",,"StudyData", $D$4, "Bar",, "Close",$E$4,C114,"All",,,,"T")="","",RTD("cqg.rtd",,"StudyData", $D$4, "Bar",, "Close",$E$4,C114,"All",,,,"T")*100) -> 8.68 | H114: 8.68 | O114: -109 | P114: =IF(RTD("cqg.rtd",,"StudyData", $P$4, "Bar",, "Close",$Q$4,O114,"All",,,,"T")="","",RTD("cqg.rtd",,"StudyData", $P$4, "Bar",, "Close",$Q$4,O114,"All",,,,"T")*100) -> 8.77 | T114: 8.77
C115: -110 | D115: =IF(RTD("cqg.rtd",,"StudyData", $D$4, "Bar",, "Close",$E$4,C115,"All",,,,"T")="","",RTD("cqg.rtd",,"StudyData", $D$4, "Bar",, "Close",$E$4,C115,"All",,,,"T")*100) -> 8.61 | H115: 8.61 | O115: -110 | P115: =IF(RTD("cqg.rtd",,"StudyData", $P$4, "Bar",, "Close",$Q$4,O115,"All",,,,"T")="","",RTD("cqg.rtd",,"StudyData", $P$4, "Bar",, "Close",$Q$4,O115,"All",,,,"T")*100) -> 8.92 | T115: 8.92
C116: -111 | D116: =IF(RTD("cqg.rtd",,"StudyData", $D$4, "Bar",, "Close",$E$4,C116,"All",,,,"T")="","",RTD("cqg.rtd",,"StudyData", $D$4, "Bar",, "Close",$E$4,C116,"All",,,,"T")*100) -> 9.09 | H116: 9.09 | O116: -111 | P116: =IF(RTD("cqg.rtd",,"StudyData", $P$4, "Bar",, "Close",$Q$4,O116,"All",,,,"T")="","",RTD("cqg.rtd",,"StudyData", $P$4, "Bar",, "Close",$Q$4,O116,"All",,,,"T")*100) -> 8.79 | T116: 8.79
C117: -112 | D117: =IF(RTD("cqg.rtd",,"StudyData", $D$4, "Bar",, "Close",$E$4,C117,"All",,,,"T")="","",RTD("cqg.rtd",,"StudyData", $D$4, "Bar",, "Close",$E$4,C117,"All",,,,"T")*100) -> 8.93 | H117: 8.93 | O117: -112 | P117: =IF(RTD("cqg.rtd",,"StudyData", $P$4, "Bar",, "Close",$Q$4,O117,"All",,,,"T")="","",RTD("cqg.rtd",,"StudyData", $P$4, "Bar",, "Close",$Q$4,O117,"All",,,,"T")*100) -> 8.62 | T117: 8.62
C118: -113 | D118: =IF(RTD("cqg.rtd",,"StudyData", $D$4, "Bar",, "Close",$E$4,C118,"All",,,,"T")="","",RTD("cqg.rtd",,"StudyData", $D$4, "Bar",, "Close",$E$4,C118,"All",,,,"T")*100) -> 8.58 | H118: 8.58 | O118: -113 | P118: =IF(RTD("cqg.rtd",,"StudyData", $P$4, "Bar",, "Close",$Q$4,O118,"All",,,,"T")="","",RTD("cqg.rtd",,"StudyData", $P$4, "Bar",, "Close",$Q$4,O118,"All",,,,"T")*100) -> 8.57 | T118: 8.57
C119: -114 | D119: =IF(RTD("cqg.rtd",,"StudyData", $D$4, "Bar",, "Close",$E$4,C119,"All",,,,"T")="","",RTD("cqg.rtd",,"StudyData", $D$4, "Bar",, "Close",$E$4,C119,"All",,,,"T")*100) -> 8.83 | H119: 8.83 | O119: -114 | P119: =IF(RTD("cqg.rtd",,"StudyData", $P$4, "Bar",, "Close",$Q$4,O119,"All",,,,"T")="","",RTD("cqg.rtd",,"StudyData", $P$4, "Bar",, "Close",$Q$4,O119,"All",,,,"T")*100) -> 8.87 | T119: 8.87
C120: -115 | D120: =IF(RTD("cqg.rtd",,"StudyData", $D$4, "Bar",, "Close",$E$4,C120,"All",,,,"T")="","",RTD("cqg.rtd",,"StudyData", $D$4, "Bar",, "Close",$E$4,C120,"All",,,,"T")*100) -> 8.7 | H120: 8.7 | O120: -115 | P120: =IF(RTD("cqg.rtd",,"StudyData", $P$4, "Bar",, "Close",$Q$4,O120,"All",,,,"T")="","",RTD("cqg.rtd",,"StudyData", $P$4, "Bar",, "Close",$Q$4,O120,"All",,,,"T")*100) -> 9 | T120: 9
C121: -116 | D121: =IF(RTD("cqg.rtd",,"StudyData", $D$4, "Bar",, "Close",$E$4,C121,"All",,,,"T")="","",RTD("cqg.rtd",,"StudyData", $D$4, "Bar",, "Close",$E$4,C121,"All",,,,"T")*100) -> 9.18 | H121: 9.18 | O121: -116 | P121: =IF(RTD("cqg.rtd",,"StudyData", $P$4, "Bar",, "Close",$Q$4,O121,"All",,,,"T")="","",RTD("cqg.rtd",,"StudyData", $P$4, "Bar",, "Close",$Q$4,O121,"All",,,,"T")*100) -> 8.99 | T121: 8.99
C122: -117 | D122: =IF(RTD("cqg.rtd",,"StudyData", $D$4, "Bar",, "Close",$E$4,C122,"All",,,,"T")="","",RTD("cqg.rtd",,"StudyData", $D$4, "Bar",, "Close",$E$4,C122,"All",,,,"T")*100) -> 9.1 | H122: 9.1 | O122: -117 | P122: =IF(RTD("cqg.rtd",,"StudyData", $P$4, "Bar",, "Close",$Q$4,O122,"All",,,,"T")="","",RTD("cqg.rtd",,"StudyData", $P$4, "Bar",, "Close",$Q$4,O122,"All",,,,"T")*100) -> 8.74 | T122: 8.74
C123: -118 | D123: =IF(RTD("cqg.rtd",,"StudyData", $D$4, "Bar",, "Close",$E$4,C123,"All",,,,"T")="","",RTD("cqg.rtd",,"StudyData", $D$4, "Bar",, "Close",$E$4,C123,"All",,,,"T")*100) -> 8.99 | H123: 8.99 | O123: -118 | P123: =IF(RTD("cqg.rtd",,"StudyData", $P$4, "Bar",, "Close",$Q$4,O123,"All",,,,"T")="","",RTD("cqg.rtd",,"StudyData", $P$4, "Bar",, "Close",$Q$4,O123,"All",,,,"T")*100) -> 9 | T123: 9
C124: -119 | D124: =IF(RTD("cqg.rtd",,"StudyData", $D$4, "Bar",, "Close",$E$4,C124,"All",,,,"T")="","",RTD("cqg.rtd",,"StudyData", $D$4, "Bar",, "Close",$E$4,C124,"All",,,,"T")*100) -> 11.23 | H124: 11.23 | O124: -119 | P124: =IF(RTD("cqg.rtd",,"StudyData", $P$4, "Bar",, "Close",$Q$4,O124,"All",,,,"T")="","",RTD("cqg.rtd",,"StudyData", $P$4, "Bar",, "Close",$Q$4,O124,"All",,,,"T")*100) -> 11.23 | T124: 11.23
C125: -120 | D125: =IF(RTD("cqg.rtd",,"StudyData", $D$4, "Bar",, "Close",$E$4,C125,"All",,,,"T")="","",RTD("cqg.rtd",,"StudyData", $D$4, "Bar",, "Close",$E$4,C125,"All",,,,"T")*100) -> 10.95 | H125: 10.95 | O125: -120 | P125: =IF(RTD("cqg.rtd",,"StudyData", $P$4, "Bar",, "Close",$Q$4,O125,"All",,,,"T")="","",RTD("cqg.rtd",,"StudyData", $P$4, "Bar",, "Close",$Q$4,O125,"All",,,,"T")*100) -> 10.93 | T125: 10.93
C126: -121 | D126: =IF(RTD("cqg.rtd",,"StudyData", $D$4, "Bar",, "Close",$E$4,C126,"All",,,,"T")="","",RTD("cqg.rtd",,"StudyData", $D$4, "Bar",, "Close",$E$4,C126,"All",,,,"T")*100) -> 11.87 | H126: 11.87 | O126: -121 | P126: =IF(RTD("cqg.rtd",,"StudyData", $P$4, "Bar",, "Close",$Q$4,O126,"All",,,,"T")="","",RTD("cqg.rtd",,"StudyData", $P$4, "Bar",, "Close",$Q$4,O126,"All",,,,"T")*100) -> 11.53 | T126: 11.53
C127: -122 | D127: =IF(RTD("cqg.rtd",,"StudyData", $D$4, "Bar",, "Close",$E$4,C127,"All",,,,"T")="","",RTD("cqg.rtd",,"StudyData", $D$4, "Bar",, "Close",$E$4,C127,"All",,,,"T")*100) -> 11.14 | H127: 11.14 | O127: -122 | P127: =IF(RTD("cqg.rtd",,"StudyData", $P$4, "Bar",, "Close",$Q$4,O127,"All",,,,"T")="","",RTD("cqg.rtd",,"StudyData", $P$4, "Bar",, "Close",$Q$4,O127,"All",,,,"T")*100) -> 11.4 | T127: 11.4
C128: -123 | D128: =IF(RTD("cqg.rtd",,"StudyData", $D$4, "Bar",, "Close",$E$4,C128,"All",,,,"T")="","",RTD("cqg.rtd",,"StudyData", $D$4, "Bar",, "Close",$E$4,C128,"All",,,,"T")*100) -> 11.1 | H128: 11.1 | O128: -123 | P128: =IF(RTD("cqg.rtd",,"StudyData", $P$4, "Bar",, "Close",$Q$4,O128,"All",,,,"T")="","",RTD("cqg.rtd",,"StudyData", $P$4, "Bar",, "Close",$Q$4,O128,"All",,,,"T")*100) -> 11.16 | T128: 11.16
C129: -124 | D129: =IF(RTD("cqg.rtd",,"StudyData", $D$4, "Bar",, "Close",$E$4,C129,"All",,,,"T")="","",RTD("cqg.rtd",,"StudyData", $D$4, "Bar",, "Close",$E$4,C129,"All",,,,"T")*100) -> 12.22 | H129: 12.22 | O129: -124 | P129: =IF(RTD("cqg.rtd",,"StudyData", $P$4, "Bar",, "Close",$Q$4,O129,"All",,,,"T")="","",RTD("cqg.rtd",,"StudyData", $P$4, "Bar",, "Close",$Q$4,O129,"All",,,,"T")*100) -> 12.26 | T129: 12.26
C130: -125 | D130: =IF(RTD("cqg.rtd",,"StudyData", $D$4, "Bar",, "Close",$E$4,C130,"All",,,,"T")="","",RTD("cqg.rtd",,"StudyData", $D$4, "Bar",, "Close",$E$4,C130,"All",,,,"T")*100) -> 12.1 | H130: 12.1 | O130: -125 | P130: =IF(RTD("cqg.rtd",,"StudyData", $P$4, "Bar",, "Close",$Q$4,O130,"All",,,,"T")="","",RTD("cqg.rtd",,"StudyData", $P$4, "Bar",, "Close",$Q$4,O130,"All",,,,"T")*100) -> 11.7 | T130: 11.7
C131: -126 | D131: =IF(RTD("cqg.rtd",,"StudyData", $D$4, "Bar",, "Close",$E$4,C131,"All",,,,"T")="","",RTD("cqg.rtd",,"StudyData", $D$4, "Bar",, "Close",$E$4,C131,"All",,,,"T")*100) -> 11.48 | H131: 11.48 | O131: -126 | P131: =IF(RTD("cqg.rtd",,"StudyData", $P$4, "Bar",, "Close",$Q$4,O131,"All",,,,"T")="","",RTD("cqg.rtd",,"StudyData", $P$4, "Bar",, "Close",$Q$4,O131,"All",,,,"T")*100) -> 11.64 | T131: 11.64
C132: -127 | D132: =IF(RTD("cqg.rtd",,"StudyData", $D$4, "Bar",, "Close",$E$4,C132,"All",,,,"T")="","",RTD("cqg.rtd",,"StudyData", $D$4, "Bar",, "Close",$E$4,C132,"All",,,,"T")*100) -> 10.85 | H132: 10.85 | O132: -127 | P132: =IF(RTD("cqg.rtd",,"StudyData", $P$4, "Bar",, "Close",$Q$4,O132,"All",,,,"T")="","",RTD("cqg.rtd",,"StudyData", $P$4, "Bar",, "Close",$Q$4,O132,"All",,,,"T")*100) -> 11.31 | T132: 11.31
C133: -128 | D133: =IF(RTD("cqg.rtd",,"StudyData", $D$4, "Bar",, "Close",$E$4,C133,"All",,,,"T")="","",RTD("cqg.rtd",,"StudyData", $D$4, "Bar",, "Close",$E$4,C133,"All",,,,"T")*100) -> 10.75 | H133: 10.75 | O133: -128 | P133: =IF(RTD("cqg.rtd",,"StudyData", $P$4, "Bar",, "Close",$Q$4,O133,"All",,,,"T")="","",RTD("cqg.rtd",,"StudyData", $P$4, "Bar",, "Close",$Q$4,O133,"All",,,,"T")*100) -> 10.76 | T133: 10.76
C134: -129 | D134: =IF(RTD("cqg.rtd",,"StudyData", $D$4, "Bar",, "Close",$E$4,C134,"All",,,,"T")="","",RTD("cqg.rtd",,"StudyData", $D$4, "Bar",, "Close",$E$4,C134,"All",,,,"T")*100) -> 10.25 | H134: =D134 -> 10.25 | O134: -129 | P134: =IF(RTD("cqg.rtd",,"StudyData", $P$4, "Bar",, "Close",$Q$4,O134,"All",,,,"T")="","",RTD("cqg.rtd",,"StudyData", $P$4, "Bar",, "Close",$Q$4,O134,"All",,,,"T")*100) -> 10.64 | T134: =P134 -> 10.64
C135: =C134-1 -> -130 | D135: =IF(RTD("cqg.rtd",,"StudyData", $D$4, "Bar",, "Close",$E$4,C135,"All",,,,"T")="","",RTD("cqg.rtd",,"StudyData", $D$4, "Bar",, "Close",$E$4,C135,"All",,,,"T")*100) -> 10.98 | H135: 10.98 | O135: =O134-1 -> -130 | P135: =IF(RTD("cqg.rtd",,"StudyData", $P$4, "Bar",, "Close",$Q$4,O135,"All",,,,"T")="","",RTD("cqg.rtd",,"StudyData", $P$4, "Bar",, "Close",$Q$4,O135,"All",,,,"T")*100) -> 10.72 | T135: 10.72
C136: -131 | D136: =IF(RTD("cqg.rtd",,"StudyData", $D$4, "Bar",, "Close",$E$4,C136,"All",,,,"T")="","",RTD("cqg.rtd",,"StudyData", $D$4, "Bar",, "Close",$E$4,C136,"All",,,,"T")*100) -> 9.9 | H136: 9.9 | O136: -131 | P136: =IF(RTD("cqg.rtd",,"StudyData", $P$4, "Bar",, "Close",$Q$4,O136,"All",,,,"T")="","",RTD("cqg.rtd",,"StudyData", $P$4, "Bar",, "Close",$Q$4,O136,"All",,,,"T")*100) -> 10.39 | T136: 10.39
C137: -132 | D137: =IF(RTD("cqg.rtd",,"StudyData", $D$4, "Bar",, "Close",$E$4,C137,"All",,,,"T")="","",RTD("cqg.rtd",,"StudyData", $D$4, "Bar",, "Close",$E$4,C137,"All",,,,"T")*100) -> 10.69 | H137: 10.69 | O137: -132 | P137: =IF(RTD("cqg.rtd",,"StudyData", $P$4, "Bar",, "Close",$Q$4,O137,"All",,,,"T")="","",RTD("cqg.rtd",,"StudyData", $P$4, "Bar",, "Close",$Q$4,O137,"All",,,,"T")*100) -> 10.31 | T137: 10.31
C138: -133 | D138: =IF(RTD("cqg.rtd",,"StudyData", $D$4, "Bar",, "Close",$E$4,C138,"All",,,,"T")="","",RTD("cqg.rtd",,"StudyData", $D$4, "Bar",, "Close",$E$4,C138,"All",,,,"T")*100) -> 10.49 | H138: 10.49 | O138: -133 | P138: =IF(RTD("cqg.rtd",,"StudyData", $P$4, "Bar",, "Close",$Q$4,O138,"All",,,,"T")="","",RTD("cqg.rtd",,"StudyData", $P$4, "Bar",, "Close",$Q$4,O138,"All",,,,"T")*100) -> 10.49 | T138: 10.49
C139: -134 | D139: =IF(RTD("cqg.rtd",,"StudyData", $D$4, "Bar",, "Close",$E$4,C139,"All",,,,"T")="","",RTD("cqg.rtd",,"StudyData", $D$4, "Bar",, "Close",$E$4,C139,"All",,,,"T")*100) -> 10.18 | H139: 10.18 | O139: -134 | P139: =IF(RTD("cqg.rtd",,"StudyData", $P$4, "Bar",, "Close",$Q$4,O139,"All",,,,"T")="","",RTD("cqg.rtd",,"StudyData", $P$4, "Bar",, "Close",$Q$4,O139,"All",,,,"T")*100) -> 10.32 | T139: 10.32
C140: -135 | D140: =IF(RTD("cqg.rtd",,"StudyData", $D$4, "Bar",, "Close",$E$4,C140,"All",,,,"T")="","",RTD("cqg.rtd",,"StudyData", $D$4, "Bar",, "Close",$E$4,C140,"All",,,,"T")*100) -> 10.42 | H140: 10.42 | O140: -135 | P140: =IF(RTD("cqg.rtd",,"StudyData", $P$4, "Bar",, "Close",$Q$4,O140,"All",,,,"T")="","",RTD("cqg.rtd",,"StudyData", $P$4, "Bar",, "Close",$Q$4,O140,"All",,,,"T")*100) -> 10.36 | T140: 10.36
C141: -136 | D141: =IF(RTD("cqg.rtd",,"StudyData", $D$4, "Bar",, "Close",$E$4,C141,"All",,,,"T")="","",RTD("cqg.rtd",,"StudyData", $D$4, "Bar",, "Close",$E$4,C141,"All",,,,"T")*100) -> 10.45 | H141: 10.45 | O141: -136 | P141: =IF(RTD("cqg.rtd",,"StudyData", $P$4, "Bar",, "Close",$Q$4,O141,"All",,,,"T")="","",RTD("cqg.rtd",,"StudyData", $P$4, "Bar",, "Close",$Q$4,O141,"All",,,,"T")*100) -> 10.61 | T141: 10.61
C142: -137 | D142: =IF(RTD("cqg.rtd",,"StudyData", $D$4, "Bar",, "Close",$E$4,C142,"All",,,,"T")="","",RTD("cqg.rtd",,"StudyData", $D$4, "Bar",, "Close",$E$4,C142,"All",,,,"T")*100) -> 10.84 | H142: 10.84 | O142: -137 | P142: =IF(RTD("cqg.rtd",,"StudyData", $P$4, "Bar",, "Close",$Q$4,O142,"All",,,,"T")="","",RTD("cqg.rtd",,"StudyData", $P$4, "Bar",, "Close",$Q$4,O142,"All",,,,"T")*100) -> 11.2 | T142: 11.2
C143: -138 | D143: =IF(RTD("cqg.rtd",,"StudyData", $D$4, "Bar",, "Close",$E$4,C143,"All",,,,"T")="","",RTD("cqg.rtd",,"StudyData", $D$4, "Bar",, "Close",$E$4,C143,"All",,,,"T")*100) -> 11.47 | H143: 11.47 | O143: -138 | P143: =IF(RTD("cqg.rtd",,"StudyData", $P$4, "Bar",, "Close",$Q$4,O143,"All",,,,"T")="","",RTD("cqg.rtd",,"StudyData", $P$4, "Bar",, "Close",$Q$4,O143,"All",,,,"T")*100) -> 11.51 | T143: 11.51
C144: -139 | D144: =IF(RTD("cqg.rtd",,"StudyData", $D$4, "Bar",, "Close",$E$4,C144,"All",,,,"T")="","",RTD("cqg.rtd",,"StudyData", $D$4, "Bar",, "Close",$E$4,C144,"All",,,,"T")*100) -> 11.6 | H144: 11.6 | O144: -139 | P144: =IF(RTD("cqg.rtd",,"StudyData", $P$4, "Bar",, "Close",$Q$4,O144,"All",,,,"T")="","",RTD("cqg.rtd",,"StudyData", $P$4, "Bar",, "Close",$Q$4,O144,"All",,,,"T")*100) -> 11.88 | T144: 11.88
C145: -140 | D145: =IF(RTD("cqg.rtd",,"StudyData", $D$4, "Bar",, "Close",$E$4,C145,"All",,,,"T")="","",RTD("cqg.rtd",,"StudyData", $D$4, "Bar",, "Close",$E$4,C145,"All",,,,"T")*100) -> 11.54 | H145: 11.54 | O145: -140 | P145: =IF(RTD("cqg.rtd",,"StudyData", $P$4, "Bar",, "Close",$Q$4,O145,"All",,,,"T")="","",RTD("cqg.rtd",,"StudyData", $P$4, "Bar",, "Close",$Q$4,O145,"All",,,,"T")*100) -> 11.47 | T145: 11.47
C146: -141 | D146: =IF(RTD("cqg.rtd",,"StudyData", $D$4, "Bar",, "Close",$E$4,C146,"All",,,,"T")="","",RTD("cqg.rtd",,"StudyData", $D$4, "Bar",, "Close",$E$4,C146,"All",,,,"T")*100) -> 11.6 | H146: 11.6 | O146: -141 | P146: =IF(RTD("cqg.rtd",,"StudyData", $P$4, "Bar",, "Close",$Q$4,O146,"All",,,,"T")="","",RTD("cqg.rtd",,"StudyData", $P$4, "Bar",, "Close",$Q$4,O146,"All",,,,"T")*100) -> 11.33 | T146: 11.33
C147: -142 | D147: =IF(RTD("cqg.rtd",,"StudyData", $D$4, "Bar",, "Close",$E$4,C147,"All",,,,"T")="","",RTD("cqg.rtd",,"StudyData", $D$4, "Bar",, "Close",$E$4,C147,"All",,,,"T")*100) -> 10.85 | H147: 10.85 | O147: -142 | P147: =IF(RTD("cqg.rtd",,"StudyData", $P$4, "Bar",, "Close",$Q$4,O147,"All",,,,"T")="","",RTD("cqg.rtd",,"StudyData", $P$4, "Bar",, "Close",$Q$4,O147,"All",,,,"T")*100) -> 10.69 | T147: 10.69
C148: -143 | D148: =IF(RTD("cqg.rtd",,"StudyData", $D$4, "Bar",, "Close",$E$4,C148,"All",,,,"T")="","",RTD("cqg.rtd",,"StudyData", $D$4, "Bar",, "Close",$E$4,C148,"All",,,,"T")*100) -> 10.87 | H148: 10.87 | O148: -143 | P148: =IF(RTD("cqg.rtd",,"StudyData", $P$4, "Bar",, "Close",$Q$4,O148,"All",,,,"T")="","",RTD("cqg.rtd",,"StudyData", $P$4, "Bar",, "Close",$Q$4,O148,"All",,,,"T")*100) -> 10.89 | T148: 10.89
C149: -144 | D149: =IF(RTD("cqg.rtd",,"StudyData", $D$4, "Bar",, "Close",$E$4,C149,"All",,,,"T")="","",RTD("cqg.rtd",,"StudyData", $D$4, "Bar",, "Close",$E$4,C149,"All",,,,"T")*100) -> 10.82 | H149: 10.82 | O149: -144 | P149: =IF(RTD("cqg.rtd",,"StudyData", $P$4, "Bar",, "Close",$Q$4,O149,"All",,,,"T")="","",RTD("cqg.rtd",,"StudyData", $P$4, "Bar",, "Close",$Q$4,O149,"All",,,,"T")*100) -> 10.9 | T149: 10.9
C150: -145 | D150: =IF(RTD("cqg.rtd",,"StudyData", $D$4, "Bar",, "Close",$E$4,C150,"All",,,,"T")="","",RTD("cqg.rtd",,"StudyData", $D$4, "Bar",, "Close",$E$4,C150,"All",,,,"T")*100) -> 11.47 | H150: 11.47 | O150: -145 | P150: =IF(RTD("cqg.rtd",,"StudyData", $P$4, "Bar",, "Close",$Q$4,O150,"All",,,,"T")="","",RTD("cqg.rtd",,"StudyData", $P$4, "Bar",, "Close",$Q$4,O150,"All",,,,"T")*100) -> 11.18 | T150: 11.18
C151: -146 | D151: =IF(RTD("cqg.rtd",,"StudyData", $D$4, "Bar",, "Close",$E$4,C151,"All",,,,"T")="","",RTD("cqg.rtd",,"StudyData", $D$4, "Bar",, "Close",$E$4,C151,"All",,,,"T")*100) -> 11.7 | H151: 11.7 | O151: -146 | P151: =IF(RTD("cqg.rtd",,"StudyData", $P$4, "Bar",, "Close",$Q$4,O151,"All",,,,"T")="","",RTD("cqg.rtd",,"StudyData", $P$4, "Bar",, "Close",$Q$4,O151,"All",,,,"T")*100) -> 11.78 | T151: 11.78
C152: -147 | D152: =IF(RTD("cqg.rtd",,"StudyData", $D$4, "Bar",, "Close",$E$4,C152,"All",,,,"T")="","",RTD("cqg.rtd",,"StudyData", $D$4, "Bar",, "Close",$E$4,C152,"All",,,,"T")*100) -> 11.58 | H152: 11.58 | O152: -147 | P152: =IF(RTD("cqg.rtd",,"StudyData", $P$4, "Bar",, "Close",$Q$4,O152,"All",,,,"T")="","",RTD("cqg.rtd",,"StudyData", $P$4, "Bar",, "Close",$Q$4,O152,"All",,,,"T")*100) -> 11.47 | T152: 11.47
C153: -148 | D153: =IF(RTD("cqg.rtd",,"StudyData", $D$4, "Bar",, "Close",$E$4,C153,"All",,,,"T")="","",RTD("cqg.rtd",,"StudyData", $D$4, "Bar",, "Close",$E$4,C153,"All",,,,"T")*100) -> 11.67 | H153: 11.67 | O153: -148 | P153: =IF(RTD("cqg.rtd",,"StudyData", $P$4, "Bar",, "Close",$Q$4,O153,"All",,,,"T")="","",RTD("cqg.rtd",,"StudyData", $P$4, "Bar",, "Close",$Q$4,O153,"All",,,,"T")*100) -> 11.69 | T153: 11.69
C154: -149 | D154: =IF(RTD("cqg.rtd",,"StudyData", $D$4, "Bar",, "Close",$E$4,C154,"All",,,,"T")="","",RTD("cqg.rtd",,"StudyData", $D$4, "Bar",, "Close",$E$4,C154,"All",,,,"T")*100) -> 11.88 | H154: 11.88 | O154: -149 | P154: =IF(RTD("cqg.rtd",,"StudyData", $P$4, "Bar",, "Close",$Q$4,O154,"All",,,,"T")="","",RTD("cqg.rtd",,"StudyData", $P$4, "Bar",, "Close",$Q$4,O154,"All",,,,"T")*100) -> 12.14 | T154: 12.14
C155: -150 | D155: =IF(RTD("cqg.rtd",,"StudyData", $D$4, "Bar",, "Close",$E$4,C155,"All",,,,"T")="","",RTD("cqg.rtd",,"StudyData", $D$4, "Bar",, "Close",$E$4,C155,"All",,,,"T")*100) -> 11.98 | H155: 11.98 | O155: -150 | P155: =IF(RTD("cqg.rtd",,"StudyData", $P$4, "Bar",, "Close",$Q$4,O155,"All",,,,"T")="","",RTD("cqg.rtd",,"StudyData", $P$4, "Bar",, "Close",$Q$4,O155,"All",,,,"T")*100) -> 11.83 | T155: 11.83
C156: -151 | D156: =IF(RTD("cqg.rtd",,"StudyData", $D$4, "Bar",, "Close",$E$4,C156,"All",,,,"T")="","",RTD("cqg.rtd",,"StudyData", $D$4, "Bar",, "Close",$E$4,C156,"All",,,,"T")*100) -> 11.9 | H156: 11.9 | O156: -151 | P156: =IF(RTD("cqg.rtd",,"StudyData", $P$4, "Bar",, "Close",$Q$4,O156,"All",,,,"T")="","",RTD("cqg.rtd",,"StudyData", $P$4, "Bar",, "Close",$Q$4,O156,"All",,,,"T")*100) -> 11.78 | T156: 11.78
C157: -152 | D157: =IF(RTD("cqg.rtd",,"StudyData", $D$4, "Bar",, "Close",$E$4,C157,"All",,,,"T")="","",RTD("cqg.rtd",,"StudyData", $D$4, "Bar",, "Close",$E$4,C157,"All",,,,"T")*100) -> 12.37 | H157: 12.37 | O157: -152 | P157: =IF(RTD("cqg.rtd",,"StudyData", $P$4, "Bar",, "Close",$Q$4,O157,"All",,,,"T")="","",RTD("cqg.rtd",,"StudyData", $P$4, "Bar",, "Close",$Q$4,O157,"All",,,,"T")*100) -> 11.44 | T157: 11.44
C158: -153 | D158: =IF(RTD("cqg.rtd",,"StudyData", $D$4, "Bar",, "Close",$E$4,C158,"All",,,,"T")="","",RTD("cqg.rtd",,"StudyData", $D$4, "Bar",, "Close",$E$4,C158,"All",,,,"T")*100) -> 9.9 | H158: 9.9 | O158: -153 | P158: =IF(RTD("cqg.rtd",,"StudyData", $P$4, "Bar",, "Close",$Q$4,O158,"All",,,,"T")="","",RTD("cqg.rtd",,"StudyData", $P$4, "Bar",, "Close",$Q$4,O158,"All",,,,"T")*100) -> 9.74 | T158: 9.74
C159: -154 | D159: =IF(RTD("cqg.rtd",,"StudyData", $D$4, "Bar",, "Close",$E$4,C159,"All",,,,"T")="","",RTD("cqg.rtd",,"StudyData", $D$4, "Bar",, "Close",$E$4,C159,"All",,,,"T")*100) -> 10.73 | H159: 10.73 | O159: -154 | P159: =IF(RTD("cqg.rtd",,"StudyData", $P$4, "Bar",, "Close",$Q$4,O159,"All",,,,"T")="","",RTD("cqg.rtd",,"StudyData", $P$4, "Bar",, "Close",$Q$4,O159,"All",,,,"T")*100) -> 10.34 | T159: 10.34
C160: -155 | D160: =IF(RTD("cqg.rtd",,"StudyData", $D$4, "Bar",, "Close",$E$4,C160,"All",,,,"T")="","",RTD("cqg.rtd",,"StudyData", $D$4, "Bar",, "Close",$E$4,C160,"All",,,,"T")*100) -> 11.14 | H160: 11.14 | O160: -155 | P160: =IF(RTD("cqg.rtd",,"StudyData", $P$4, "Bar",, "Close",$Q$4,O160,"All",,,,"T")="","",RTD("cqg.rtd",,"StudyData", $P$4, "Bar",, "Close",$Q$4,O160,"All",,,,"T")*100) -> 10.72 | T160: 10.72
C161: -156 | D161: =IF(RTD("cqg.rtd",,"StudyData", $D$4, "Bar",, "Close",$E$4,C161,"All",,,,"T")="","",RTD("cqg.rtd",,"StudyData", $D$4, "Bar",, "Close",$E$4,C161,"All",,,,"T")*100) -> 10.78 | H161: 10.78 | O161: -156 | P161: =IF(RTD("cqg.rtd",,"StudyData", $P$4, "Bar",, "Close",$Q$4,O161,"All",,,,"T")="","",RTD("cqg.rtd",,"StudyData", $P$4, "Bar",, "Close",$Q$4,O161,"All",,,,"T")*100) -> 11.69 | T161: 11.69
C162: -157 | D162: =IF(RTD("cqg.rtd",,"StudyData", $D$4, "Bar",, "Close",$E$4,C162,"All",,,,"T")="","",RTD("cqg.rtd",,"StudyData", $D$4, "Bar",, "Close",$E$4,C162,"All",,,,"T")*100) -> 11.01 | H162: 11.01 | O162: -157 | P162: =IF(RTD("cqg.rtd",,"StudyData", $P$4, "Bar",, "Close",$Q$4,O162,"All",,,,"T")="","",RTD("cqg.rtd",,"StudyData", $P$4, "Bar",, "Close",$Q$4,O162,"All",,,,"T")*100) -> 10.07 | T162: 10.07
C163: -158 | D163: =IF(RTD("cqg.rtd",,"StudyData", $D$4, "Bar",, "Close",$E$4,C163,"All",,,,"T")="","",RTD("cqg.rtd",,"StudyData", $D$4, "Bar",, "Close",$E$4,C163,"All",,,,"T")*100) -> 8.84 | H163: 8.84 | O163: -158 | P163: =IF(RTD("cqg.rtd",,"StudyData", $P$4, "Bar",, "Close",$Q$4,O163,"All",,,,"T")="","",RTD("cqg.rtd",,"StudyData", $P$4, "Bar",, "Close",$Q$4,O163,"All",,,,"T")*100) -> 10.12 | T163: 10.12
C164: -159 | D164: =IF(RTD("cqg.rtd",,"StudyData", $D$4, "Bar",, "Close",$E$4,C164,"All",,,,"T")="","",RTD("cqg.rtd",,"StudyData", $D$4, "Bar",, "Close",$E$4,C164,"All",,,,"T")*100) -> 10.21 | H164: 10.21 | O164: -159 | P164: =IF(RTD("cqg.rtd",,"StudyData", $P$4, "Bar",, "Close",$Q$4,O164,"All",,,,"T")="","",RTD("cqg.rtd",,"StudyData", $P$4, "Bar",, "Close",$Q$4,O164,"All",,,,"T")*100) -> 10.17 | T164: 10.17
C165: -160 | D165: =IF(RTD("cqg.rtd",,"StudyData", $D$4, "Bar",, "Close",$E$4,C165,"All",,,,"T")="","",RTD("cqg.rtd",,"StudyData", $D$4, "Bar",, "Close",$E$4,C165,"All",,,,"T")*100) -> 9.77 | H165: 9.77 | O165: -160 | P165: =IF(RTD("cqg.rtd",,"StudyData", $P$4, "Bar",, "Close",$Q$4,O165,"All",,,,"T")="","",RTD("cqg.rtd",,"StudyData", $P$4, "Bar",, "Close",$Q$4,O165,"All",,,,"T")*100) -> 10.28 | T165: 10.28
C166: -161 | D166: =IF(RTD("cqg.rtd",,"StudyData", $D$4, "Bar",, "Close",$E$4,C166,"All",,,,"T")="","",RTD("cqg.rtd",,"StudyData", $D$4, "Bar",, "Close",$E$4,C166,"All",,,,"T")*100) -> 9.74 | H166: 9.74 | O166: -161 | P166: =IF(RTD("cqg.rtd",,"StudyData", $P$4, "Bar",, "Close",$Q$4,O166,"All",,,,"T")="","",RTD("cqg.rtd",,"StudyData", $P$4, "Bar",, "Close",$Q$4,O166,"All",,,,"T")*100) -> 9.88 | T166: 9.88
C167: -162 | D167: =IF(RTD("cqg.rtd",,"StudyData", $D$4, "Bar",, "Close",$E$4,C167,"All",,,,"T")="","",RTD("cqg.rtd",,"StudyData", $D$4, "Bar",, "Close",$E$4,C167,"All",,,,"T")*100) -> 9.63 | H167: 9.63 | O167: -162 | P167: =IF(RTD("cqg.rtd",,"StudyData", $P$4, "Bar",, "Close",$Q$4,O167,"All",,,,"T")="","",RTD("cqg.rtd",,"StudyData", $P$4, "Bar",, "Close",$Q$4,O167,"All",,,,"T")*100) -> 9.59 | T167: 9.59
C168: -163 | D168: =IF(RTD("cqg.rtd",,"StudyData", $D$4, "Bar",, "Close",$E$4,C168,"All",,,,"T")="","",RTD("cqg.rtd",,"StudyData", $D$4, "Bar",, "Close",$E$4,C168,"All",,,,"T")*100) -> 9.75 | H168: 9.75 | O168: -163 | P168: =IF(RTD("cqg.rtd",,"StudyData", $P$4, "Bar",, "Close",$Q$4,O168,"All",,,,"T")="","",RTD("cqg.rtd",,"StudyData", $P$4, "Bar",, "Close",$Q$4,O168,"All",,,,"T")*100) -> 9.89 | T168: 9.89
C169: -164 | D169: =IF(RTD("cqg.rtd",,"StudyData", $D$4, "Bar",, "Close",$E$4,C169,"All",,,,"T")="","",RTD("cqg.rtd",,"StudyData", $D$4, "Bar",, "Close",$E$4,C169,"All",,,,"T")*100) -> 9.67 | H169: 9.67 | O169: -164 | P169: =IF(RTD("cqg.rtd",,"StudyData", $P$4, "Bar",, "Close",$Q$4,O169,"All",,,,"T")="","",RTD("cqg.rtd",,"StudyData", $P$4, "Bar",, "Close",$Q$4,O169,"All",,,,"T")*100) -> 9.72 | T169: 9.72
C170: -165 | D170: =IF(RTD("cqg.rtd",,"StudyData", $D$4, "Bar",, "Close",$E$4,C170,"All",,,,"T")="","",RTD("cqg.rtd",,"StudyData", $D$4, "Bar",, "Close",$E$4,C170,"All",,,,"T")*100) -> 9.44 | H170: 9.44 | O170: -165 | P170: =IF(RTD("cqg.rtd",,"StudyData", $P$4, "Bar",, "Close",$Q$4,O170,"All",,,,"T")="","",RTD("cqg.rtd",,"StudyData", $P$4, "Bar",, "Close",$Q$4,O170,"All",,,,"T")*100) -> 9.05 | T170: 9.05
C171: -166 | D171: =IF(RTD("cqg.rtd",,"StudyData", $D$4, "Bar",, "Close",$E$4,C171,"All",,,,"T")="","",RTD("cqg.rtd",,"StudyData", $D$4, "Bar",, "Close",$E$4,C171,"All",,,,"T")*100) -> 9.49 | H171: 9.49 | O171: -166 | P171: =IF(RTD("cqg.rtd",,"StudyData", $P$4, "Bar",, "Close",$Q$4,O171,"All",,,,"T")="","",RTD("cqg.rtd",,"StudyData", $P$4, "Bar",, "Close",$Q$4,O171,"All",,,,"T")*100) -> 9.61 | T171: 9.61
C172: -167 | D172: =IF(RTD("cqg.rtd",,"StudyData", $D$4, "Bar",, "Close",$E$4,C172,"All",,,,"T")="","",RTD("cqg.rtd",,"StudyData", $D$4, "Bar",, "Close",$E$4,C172,"All",,,,"T")*100) -> 9.88 | H172: 9.88 | O172: -167 | P172: =IF(RTD("cqg.rtd",,"StudyData", $P$4, "Bar",, "Close",$Q$4,O172,"All",,,,"T")="","",RTD("cqg.rtd",,"StudyData", $P$4, "Bar",, "Close",$Q$4,O172,"All",,,,"T")*100) -> 9.82 | T172: 9.82
C173: -168 | D173: =IF(RTD("cqg.rtd",,"StudyData", $D$4, "Bar",, "Close",$E$4,C173,"All",,,,"T")="","",RTD("cqg.rtd",,"StudyData", $D$4, "Bar",, "Close",$E$4,C173,"All",,,,"T")*100) -> 9.28 | H173: 9.28 | O173: -168 | P173: =IF(RTD("cqg.rtd",,"StudyData", $P$4, "Bar",, "Close",$Q$4,O173,"All",,,,"T")="","",RTD("cqg.rtd",,"StudyData", $P$4, "Bar",, "Close",$Q$4,O173,"All",,,,"T")*100) -> 9.27 | T173: 9.27
C174: -169 | D174: =IF(RTD("cqg.rtd",,"StudyData", $D$4, "Bar",, "Close",$E$4,C174,"All",,,,"T")="","",RTD("cqg.rtd",,"StudyData", $D$4, "Bar",, "Close",$E$4,C174,"All",,,,"T")*100) -> 9.47 | H174: 9.47 | O174: -169 | P174: =IF(RTD("cqg.rtd",,"StudyData", $P$4, "Bar",, "Close",$Q$4,O174,"All",,,,"T")="","",RTD("cqg.rtd",,"StudyData", $P$4, "Bar",, "Close",$Q$4,O174,"All",,,,"T")*100) -> 9.59 | T174: 9.59
C175: -170 | D175: =IF(RTD("cqg.rtd",,"StudyData", $D$4, "Bar",, "Close",$E$4,C175,"All",,,,"T")="","",RTD("cqg.rtd",,"StudyData", $D$4, "Bar",, "Close",$E$4,C175,"All",,,,"T")*100) -> 10.07 | H175: 10.07 | O175: -170 | P175: =IF(RTD("cqg.rtd",,"StudyData", $P$4, "Bar",, "Close",$Q$4,O175,"All",,,,"T")="","",RTD("cqg.rtd",,"StudyData", $P$4, "Bar",, "Close",$Q$4,O175,"All",,,,"T")*100) -> 9.18 | T175: 9.18
C176: -171 | D176: =IF(RTD("cqg.rtd",,"StudyData", $D$4, "Bar",, "Close",$E$4,C176,"All",,,,"T")="","",RTD("cqg.rtd",,"StudyData", $D$4, "Bar",, "Close",$E$4,C176,"All",,,,"T")*100) -> 9.41 | H176: 9.41 | O176: -171 | P176: =IF(RTD("cqg.rtd",,"StudyData", $P$4, "Bar",, "Close",$Q$4,O176,"All",,,,"T")="","",RTD("cqg.rtd",,"StudyData", $P$4, "Bar",, "Close",$Q$4,O176,"All",,,,"T")*100) -> 9.41 | T176: 9.41
C177: -172 | D177: =IF(RTD("cqg.rtd",,"StudyData", $D$4, "Bar",, "Close",$E$4,C177,"All",,,,"T")="","",RTD("cqg.rtd",,"StudyData", $D$4, "Bar",, "Close",$E$4,C177,"All",,,,"T")*100) -> 9.41 | H177: 9.41 | O177: -172 | P177: =IF(RTD("cqg.rtd",,"StudyData", $P$4, "Bar",, "Close",$Q$4,O177,"All",,,,"T")="","",RTD("cqg.rtd",,"StudyData", $P$4, "Bar",, "Close",$Q$4,O177,"All",,,,"T")*100) -> 9.47 | T177: 9.47
C178: -173 | D178: =IF(RTD("cqg.rtd",,"StudyData", $D$4, "Bar",, "Close",$E$4,C178,"All",,,,"T")="","",RTD("cqg.rtd",,"StudyData", $D$4, "Bar",, "Close",$E$4,C178,"All",,,,"T")*100) -> 10.31 | H178: 10.31 | O178: -173 | P178: =IF(RTD("cqg.rtd",,"StudyData", $P$4, "Bar",, "Close",$Q$4,O178,"All",,,,"T")="","",RTD("cqg.rtd",,"StudyData", $P$4, "Bar",, "Close",$Q$4,O178,"All",,,,"T")*100) -> 9.92 | T178: 9.92
C179: -174 | D179: =IF(RTD("cqg.rtd",,"StudyData", $D$4, "Bar",, "Close",$E$4,C179,"All",,,,"T")="","",RTD("cqg.rtd",,"StudyData", $D$4, "Bar",, "Close",$E$4,C179,"All",,,,"T")*100) -> 9.83 | H179: 9.83 | O179: -174 | P179: =IF(RTD("cqg.rtd",,"StudyData", $P$4, "Bar",, "Close",$Q$4,O179,"All",,,,"T")="","",RTD("cqg.rtd",,"StudyData", $P$4, "Bar",, "Close",$Q$4,O179,"All",,,,"T")*100) -> 9.89 | T179: 9.89
C180: -175 | D180: =IF(RTD("cqg.rtd",,"StudyData", $D$4, "Bar",, "Close",$E$4,C180,"All",,,,"T")="","",RTD("cqg.rtd",,"StudyData", $D$4, "Bar",, "Close",$E$4,C180,"All",,,,"T")*100) -> 9.57 | H180: 9.57 | O180: -175 | P180: =IF(RTD("cqg.rtd",,"StudyData", $P$4, "Bar",, "Close",$Q$4,O180,"All",,,,"T")="","",RTD("cqg.rtd",,"StudyData", $P$4, "Bar",, "Close",$Q$4,O180,"All",,,,"T")*100) -> 10.43 | T180: 10.43
C181: -176 | D181: =IF(RTD("cqg.rtd",,"StudyData", $D$4, "Bar",, "Close",$E$4,C181,"All",,,,"T")="","",RTD("cqg.rtd",,"StudyData", $D$4, "Bar",, "Close",$E$4,C181,"All",,,,"T")*100) -> 9.94 | H181: 9.94 | O181: -176 | P181: =IF(RTD("cqg.rtd",,"StudyData", $P$4, "Bar",, "Close",$Q$4,O181,"All",,,,"T")="","",RTD("cqg.rtd",,"StudyData", $P$4, "Bar",, "Close",$Q$4,O181,"All",,,,"T")*100) -> 10.01 | T181: 10.01
C182: -177 | D182: =IF(RTD("cqg.rtd",,"StudyData", $D$4, "Bar",, "Close",$E$4,C182,"All",,,,"T")="","",RTD("cqg.rtd",,"StudyData", $D$4, "Bar",, "Close",$E$4,C182,"All",,,,"T")*100) -> 9.31 | H182: 9.31 | O182: -177 | P182: =IF(RTD("cqg.rtd",,"StudyData", $P$4, "Bar",, "Close",$Q$4,O182,"All",,,,"T")="","",RTD("cqg.rtd",,"StudyData", $P$4, "Bar",, "Close",$Q$4,O182,"All",,,,"T")*100) -> 9.49 | T182: 9.49
C183: -178 | D183: =IF(RTD("cqg.rtd",,"StudyData", $D$4, "Bar",, "Close",$E$4,C183,"All",,,,"T")="","",RTD("cqg.rtd",,"StudyData", $D$4, "Bar",, "Close",$E$4,C183,"All",,,,"T")*100) -> 9.48 | H183: 9.48 | O183: -178 | P183: =IF(RTD("cqg.rtd",,"StudyData", $P$4, "Bar",, "Close",$Q$4,O183,"All",,,,"T")="","",RTD("cqg.rtd",,"StudyData", $P$4, "Bar",, "Close",$Q$4,O183,"All",,,,"T")*100) -> 9.53 | T183: 9.53
C184: -179 | D184: =IF(RTD("cqg.rtd",,"StudyData", $D$4, "Bar",, "Close",$E$4,C184,"All",,,,"T")="","",RTD("cqg.rtd",,"StudyData", $D$4, "Bar",, "Close",$E$4,C184,"All",,,,"T")*100) -> 9.6 | H184: 9.6 | O184: -179 | P184: =IF(RTD("cqg.rtd",,"StudyData", $P$4, "Bar",, "Close",$Q$4,O184,"All",,,,"T")="","",RTD("cqg.rtd",,"StudyData", $P$4, "Bar",, "Close",$Q$4,O184,"All",,,,"T")*100) -> 9.57 | T184: 9.57
C185: -180 | D185: =IF(RTD("cqg.rtd",,"StudyData", $D$4, "Bar",, "Close",$E$4,C185,"All",,,,"T")="","",RTD("cqg.rtd",,"StudyData", $D$4, "Bar",, "Close",$E$4,C185,"All",,,,"T")*100) -> 9.48 | H185: 9.48 | O185: -180 | P185: =IF(RTD("cqg.rtd",,"StudyData", $P$4, "Bar",, "Close",$Q$4,O185,"All",,,,"T")="","",RTD("cqg.rtd",,"StudyData", $P$4, "Bar",, "Close",$Q$4,O185,"All",,,,"T")*100) -> 9.82 | T185: 9.82
C186: -181 | D186: =IF(RTD("cqg.rtd",,"StudyData", $D$4, "Bar",, "Close",$E$4,C186,"All",,,,"T")="","",RTD("cqg.rtd",,"StudyData", $D$4, "Bar",, "Close",$E$4,C186,"All",,,,"T")*100) -> 10.31 | H186: 10.31 | O186: -181 | P186: =IF(RTD("cqg.rtd",,"StudyData", $P$4, "Bar",, "Close",$Q$4,O186,"All",,,,"T")="","",RTD("cqg.rtd",,"StudyData", $P$4, "Bar",, "Close",$Q$4,O186,"All",,,,"T")*100) -> 10.1 | T186: 10.1
C187: -182 | D187: =IF(RTD("cqg.rtd",,"StudyData", $D$4, "Bar",, "Close",$E$4,C187,"All",,,,"T")="","",RTD("cqg.rtd",,"StudyData", $D$4, "Bar",, "Close",$E$4,C187,"All",,,,"T")*100) -> 10.1 | H187: 10.1 | O187: -182 | P187: =IF(RTD("cqg.rtd",,"StudyData", $P$4, "Bar",, "Close",$Q$4,O187,"All",,,,"T")="","",RTD("cqg.rtd",,"StudyData", $P$4, "Bar",, "Close",$Q$4,O187,"All",,,,"T")*100) -> 10.14 | T187: 10.14
C188: -183 | D188: =IF(RTD("cqg.rtd",,"StudyData", $D$4, "Bar",, "Close",$E$4,C188,"All",,,,"T")="","",RTD("cqg.rtd",,"StudyData", $D$4, "Bar",, "Close",$E$4,C188,"All",,,,"T")*100) -> 10.84 | H188: 10.84 | O188: -183 | P188: =IF(RTD("cqg.rtd",,"StudyData", $P$4, "Bar",, "Close",$Q$4,O188,"All",,,,"T")="","",RTD("cqg.rtd",,"StudyData", $P$4, "Bar",, "Close",$Q$4,O188,"All",,,,"T")*100) -> 10.71 | T188: 10.71
C189: -184 | D189: =IF(RTD("cqg.rtd",,"StudyData", $D$4, "Bar",, "Close",$E$4,C189,"All",,,,"T")="","",RTD("cqg.rtd",,"StudyData", $D$4, "Bar",, "Close",$E$4,C189,"All",,,,"T")*100) -> 10.74 | H189: 10.74 | O189: -184 | P189: =IF(RTD("cqg.rtd",,"StudyData", $P$4, "Bar",, "Close",$Q$4,O189,"All",,,,"T")="","",RTD("cqg.rtd",,"StudyData", $P$4, "Bar",, "Close",$Q$4,O189,"All",,,,"T")*100) -> 10.36 | T189: 10.36
C190: -185 | D190: =IF(RTD("cqg.rtd",,"StudyData", $D$4, "Bar",, "Close",$E$4,C190,"All",,,,"T")="","",RTD("cqg.rtd",,"StudyData", $D$4, "Bar",, "Close",$E$4,C190,"All",,,,"T")*100) -> 10.72 | H190: 10.72 | O190: -185 | P190: =IF(RTD("cqg.rtd",,"StudyData", $P$4, "Bar",, "Close",$Q$4,O190,"All",,,,"T")="","",RTD("cqg.rtd",,"StudyData", $P$4, "Bar",, "Close",$Q$4,O190,"All",,,,"T")*100) -> 10.58 | T190: 10.58
C191: -186 | D191: =IF(RTD("cqg.rtd",,"StudyData", $D$4, "Bar",, "Close",$E$4,C191,"All",,,,"T")="","",RTD("cqg.rtd",,"StudyData", $D$4, "Bar",, "Close",$E$4,C191,"All",,,,"T")*100) -> 10.64 | H191: 10.64 | O191: -186 | P191: =IF(RTD("cqg.rtd",,"StudyData", $P$4, "Bar",, "Close",$Q$4,O191,"All",,,,"T")="","",RTD("cqg.rtd",,"StudyData", $P$4, "Bar",, "Close",$Q$4,O191,"All",,,,"T")*100) -> 10.68 | T191: 10.68
C192: -187 | D192: =IF(RTD("cqg.rtd",,"StudyData", $D$4, "Bar",, "Close",$E$4,C192,"All",,,,"T")="","",RTD("cqg.rtd",,"StudyData", $D$4, "Bar",, "Close",$E$4,C192,"All",,,,"T")*100) -> 10.8 | H192: 10.8 | O192: -187 | P192: =IF(RTD("cqg.rtd",,"StudyData", $P$4, "Bar",, "Close",$Q$4,O192,"All",,,,"T")="","",RTD("cqg.rtd",,"StudyData", $P$4, "Bar",, "Close",$Q$4,O192,"All",,,,"T")*100) -> 11.15 | T192: 11.15
C193: -188 | D193: =IF(RTD("cqg.rtd",,"StudyData", $D$4, "Bar",, "Close",$E$4,C193,"All",,,,"T")="","",RTD("cqg.rtd",,"StudyData", $D$4, "Bar",, "Close",$E$4,C193,"All",,,,"T")*100) -> 10.88 | H193: 10.88 | O193: -188 | P193: =IF(RTD("cqg.rtd",,"StudyData", $P$4, "Bar",, "Close",$Q$4,O193,"All",,,,"T")="","",RTD("cqg.rtd",,"StudyData", $P$4, "Bar",, "Close",$Q$4,O193,"All",,,,"T")*100) -> 10.98 | T193: 10.98
C194: -189 | D194: =IF(RTD("cqg.rtd",,"StudyData", $D$4, "Bar",, "Close",$E$4,C194,"All",,,,"T")="","",RTD("cqg.rtd",,"StudyData", $D$4, "Bar",, "Close",$E$4,C194,"All",,,,"T")*100) -> 10.99 | H194: 10.99 | O194: -189 | P194: =IF(RTD("cqg.rtd",,"StudyData", $P$4, "Bar",, "Close",$Q$4,O194,"All",,,,"T")="","",RTD("cqg.rtd",,"StudyData", $P$4, "Bar",, "Close",$Q$4,O194,"All",,,,"T")*100) -> 11.11 | T194: 11.11
C195: -190 | D195: =IF(RTD("cqg.rtd",,"StudyData", $D$4, "Bar",, "Close",$E$4,C195,"All",,,,"T")="","",RTD("cqg.rtd",,"StudyData", $D$4, "Bar",, "Close",$E$4,C195,"All",,,,"T")*100) -> 11.18 | H195: 11.18 | O195: -190 | P195: =IF(RTD("cqg.rtd",,"StudyData", $P$4, "Bar",, "Close",$Q$4,O195,"All",,,,"T")="","",RTD("cqg.rtd",,"StudyData", $P$4, "Bar",, "Close",$Q$4,O195,"All",,,,"T")*100) -> 10.98 | T195: 10.98
C196: -191 | D196: =IF(RTD("cqg.rtd",,"StudyData", $D$4, "Bar",, "Close",$E$4,C196,"All",,,,"T")="","",RTD("cqg.rtd",,"StudyData", $D$4, "Bar",, "Close",$E$4,C196,"All",,,,"T")*100) -> 11.11 | H196: 11.11 | O196: -191 | P196: =IF(RTD("cqg.rtd",,"StudyData", $P$4, "Bar",, "Close",$Q$4,O196,"All",,,,"T")="","",RTD("cqg.rtd",,"StudyData", $P$4, "Bar",, "Close",$Q$4,O196,"All",,,,"T")*100) -> 11.12 | T196: 11.12
C197: -192 | D197: =IF(RTD("cqg.rtd",,"StudyData", $D$4, "Bar",, "Close",$E$4,C197,"All",,,,"T")="","",RTD("cqg.rtd",,"StudyData", $D$4, "Bar",, "Close",$E$4,C197,"All",,,,"T")*100) -> 11.12 | H197: 11.12 | O197: -192 | P197: =IF(RTD("cqg.rtd",,"StudyData", $P$4, "Bar",, "Close",$Q$4,O197,"All",,,,"T")="","",RTD("cqg.rtd",,"StudyData", $P$4, "Bar",, "Close",$Q$4,O197,"All",,,,"T")*100) -> 11.29 | T197: 11.29
C198: -193 | D198: =IF(RTD("cqg.rtd",,"StudyData", $D$4, "Bar",, "Close",$E$4,C198,"All",,,,"T")="","",RTD("cqg.rtd",,"StudyData", $D$4, "Bar",, "Close",$E$4,C198,"All",,,,"T")*100) -> 11.28 | H198: =D198 -> 11.28 | O198: -193 | P198: =IF(RTD("cqg.rtd",,"StudyData", $P$4, "Bar",, "Close",$Q$4,O198,"All",,,,"T")="","",RTD("cqg.rtd",,"StudyData", $P$4, "Bar",, "Close",$Q$4,O198,"All",,,,"T")*100) -> 11.34 | T198: =P198 -> 11.34
C199: =C198-1 -> -194 | D199: =IF(RTD("cqg.rtd",,"StudyData", $D$4, "Bar",, "Close",$E$4,C199,"All",,,,"T")="","",RTD("cqg.rtd",,"StudyData", $D$4, "Bar",, "Close",$E$4,C199,"All",,,,"T")*100) -> 11.99 | H199: 11.99 | O199: =O198-1 -> -194 | P199: =IF(RTD("cqg.rtd",,"StudyData", $P$4, "Bar",, "Close",$Q$4,O199,"All",,,,"T")="","",RTD("cqg.rtd",,"StudyData", $P$4, "Bar",, "Close",$Q$4,O199,"All",,,,"T")*100) -> 11.96 | T199: 11.96
C200: -195 | D200: =IF(RTD("cqg.rtd",,"StudyData", $D$4, "Bar",, "Close",$E$4,C200,"All",,,,"T")="","",RTD("cqg.rtd",,"StudyData", $D$4, "Bar",, "Close",$E$4,C200,"All",,,,"T")*100) -> 13.54 | H200: 13.54 | O200: -195 | P200: =IF(RTD("cqg.rtd",,"StudyData", $P$4, "Bar",, "Close",$Q$4,O200,"All",,,,"T")="","",RTD("cqg.rtd",,"StudyData", $P$4, "Bar",, "Close",$Q$4,O200,"All",,,,"T")*100) -> 12.88 | T200: 12.88
... 4 more rows
